Cogmind - Beta 16 @@@ ROGUE MODE // 2025.10.22 @ 01:43:13 Player: Cogchaaaan Result: Escaped singularity! Performance ------------- Evolutions (9) 4500 Regions Visited (29) 5800 Robots Destroyed (259) 1295 Value Destroyed (16217) 16217 Prototype IDs (366) 7320 Alien Tech Used (8) 1600 Bonus (61225) 61225 TOTAL SCORE: 97957 Bonus ------- High Alert Combat Kills 4217 Follower Combat Kills 1678 Network Hubs Disabled 200 Registered with UFD 300 Met Optimus in HQ 500 Met Zhirov 300 Met Warlord at Base 500 MAIN.C Attacked Warlord 500 Warlord Defense Kills 30 Scanned by Researcher 500 Acquired SGEMP 2000 Destroyed Superfortress 15000 Met Optimus at Protoforge 1000 Delivered SGEMP 2000 Destroyed MAIN.C Guards 500 Met MAIN.C 5000 Destroyed MAIN.C Shell 5000 Zhirov Destroyed MAIN.C 3000 Met Architect 300 Destroyed A8 300 Destroyed A6 400 Destroyed Architect 15000 Win 3000 Cogmind --------- Core Integrity 1002/1600 Matter 253/300 Energy 917/940 System Corruption 20% Temperature Cool (27) Movement Hovering (28) Location Near Former Tau Ceti IV Parts ------- > --- POWER (2) -------- Concept Zero-point Core Concept Zero-point Core > --- PROPULSION (8) --- Cooled Antigrav System Cooled Linear Gravjet Experimental Antigrav System Experimental Antigrav System Experimental Antigrav System Concept Combat Aerolev Unit Concept Combat Aerolev Unit Concept Gyrokinetic System > --- UTILITY (11) ----- Concept Antigrav Storage Unit Experimental Energy Well Deep Structural Scanner Experimental Optical Array Concept Weapon Articulator Concept Core Analysis Suite Femtoactuators Concept Phase Shift Module Heavy Regenerative Plating Graphene Brace > --- WEAPON (4) ------- Concept Plasma Driver Concept Heavy Railcannon Experimental Jetlance > --- INVENTORY (25) --- Zero-point Reactor Concept Zero-point Core Cooled Antigrav System Cooled Antigrav System Concept NT7 Matterbank (750) Concept Weapon Articulator Femtoactuators Concept Beam Splitter Concept Matter Streamer Concept Impact Drone Bay (0/6) Hypervelocity Linear Accelerator Hellfire Missile Launcher Peak State ------------ > --- POWER ------------ Concept Zero-point Core Concept Zero-point Core > --- PROPULSION ------- Experimental Antigrav System Experimental Antigrav System Experimental Antigrav System Gravjet Array Concept Combat Aerolev Unit Concept Combat Aerolev Unit Concept Gyrokinetic System > --- UTILITY ---------- Concept Phasing Heat Sink Concept Antigrav Storage Unit Experimental Optical Array Concept Weapon Articulator Concept Core Analysis Suite Experimental Armor Integrity Analyzer Experimental Reaction Control System Concept Phase Shift Module Graphene Brace Experimental Remote Shield Concept Antimissile System > --- WEAPON ----------- Concept Heavy Railcannon Sigix Broadsword > --- INVENTORY -------- Concept Zero-point Core Cooled Antigrav System Experimental Antigrav System Experimental Energy Well Concept NT7 Matterbank Deep Structural Scanner Concept Weapon Articulator Femtoactuators Femtoactuators Reaction Control System Experimental Reaction Control System Concept Cloak Mesh Heavy Regenerative Plating Concept Beam Splitter Concept Matter Streamer Concept Impact Drone Bay Concept Impact Drone Bay Transdimensional Reconstructor Concept Disintegration Ray Concept Plasma Driver Experimental Jetlance Experimental Jetlance [Rating: 299] Favorites ----------- Power Concept Zero-point Core Engine Improved Ion Engine Power Core Concept Zero-point Core Reactor Micro Antimatter Reactor Propulsion Light Treads Treads Light Treads Leg Aluminum Leg Wheel Compact Wheel Hover Unit Experimental Antigrav System Flight Unit Improved Flight Unit Utility Huge Storage Unit Device Experimental Reaction Control System Storage Huge Storage Unit Processor Experimental Optical Array Hackware Advanced Hacking Suite Protection Hardened Light Armor Plating Weapon Improved Assault Rifle Energy Gun Medium Laser Energy Cannon Heavy Phase Cannon Ballistic Gun Improved Assault Rifle Ballistic Cannon Concept Heavy Railcannon Launcher Mini Grenade Launcher Special Weapon Improved Plasma Cutter Slashing Weapon Sigix Broadsword Piercing Weapon Experimental Jetlance Build | -11 -10 -10 -9 -9 -9 -9 -6 -6 -6 -6 -6 -5 -5 -5 -5 -4 -4 -4 -4 -4 -3 -3 -3 -3 -2 -2 -1 -1 -1 ------- Run | Yrd Mat Min Mat Sto Rec Scr Fac Ext Cet Arc Hub Fac Upp Upp Zhi Pro Fac Upp Upp War Pro Res Qua Frg Res Tes Acc Com Ac0 Slots Evolved 18 | . . . 2 . . . 6 . . . . 2 . . . . 2 . . . . 2 . . 2 . 2 . . Power 1 | . . . . . . . . . . . . . . . . . . . . . . . . . 1 . . . . Propulsion 6 | . . . 1 . . . 2 . . . . 1 . . . . . . . . . 2 . . . . . . . Utility 9 | . . . . . . . 4 . . . . 1 . . . . 2 . . . . . . . . . 2 . . Weapon 2 | . . . 1 . . . . . . . . . . . . . . . . . . . . . 1 . . . . Parts Attached 190 | 8 10 4 23 7 1 6 17 5 . 1 1 9 . . 2 . 3 1 . 8 . 4 4 54 2 4 2 5 9 Power 18 | 1 2 . 2 1 . 1 1 3 . . . 1 . . . . . . . . . . 1 4 1 . . . . Engine 7 | 1 2 . 1 1 . . . 2 . . . . . . . . . . . . . . . . . . . . . Core 7 | . . . 1 . . 1 1 1 . . . 1 . . . . . . . . . . . 1 1 . . . . Reactor 4 | . . . . . . . . . . . . . . . . . . . . . . . 1 3 . . . . . Propulsion 57 | 2 2 2 13 2 1 4 5 . . . . 1 . . 1 . . 1 . 1 . 1 . 18 . . . . 3 Treads 15 | . . . 12 2 1 . . . . . . . . . . . . . . . . . . . . . . . . Leg 6 | 2 2 2 . . . . . . . . . . . . . . . . . . . . . . . . . . . Wheel 4 | . . . . . . 4 . . . . . . . . . . . . . . . . . . . . . . . Hover 12 | . . . . . . . . . . . . . . . . . . . . . . . . 9 . . . . 3 Flight 20 | . . . 1 . . . 5 . . . . 1 . . 1 . . 1 . 1 . 1 . 9 . . . . . Utility 73 | 2 2 1 5 . . 1 8 1 . . 1 5 . . . . 3 . . 4 . 3 2 23 . 2 1 4 5 Device 40 | 1 1 . . . . 1 4 1 . . . 4 . . . . . . . 2 . 2 1 13 . 2 1 4 3 Storage 9 | 1 1 1 2 . . . . . . . . . . . . . . . . 1 . . . 2 . . . . 1 Processor 12 | . . . . . . . 2 . . . 1 . . . . . . . . 1 . . . 8 . . . . . Hackware 3 | . . . . . . . . . . . . . . . . . 2 . . . . 1 . . . . . . . Protection 9 | . . . 3 . . . 2 . . . . 1 . . . . 1 . . . . . 1 . . . . . 1 Artifact . | . . . . . . . . . . . . . . . . . . . . . . . . . . . . . . Weapon 42 | 3 4 1 3 4 . . 3 1 . 1 . 2 . . 1 . . . . 3 . . 1 9 1 2 1 1 1 Energy Gun 5 | 2 1 . . . . . . . . . . . . . . . . . . 1 . . . 1 . . . . . Energy Cannon 7 | . . . . . . . 2 . . . . 1 . . . . . . . 1 . . . 1 . 1 1 . . Ballistic Gun 14 | 1 3 1 2 4 . . . . . . . . . . . . . . . . . . . 3 . . . . . Ballistic Cannon 3 | . . . . . . . . . . . . . . . . . . . . . . . . 1 1 . . . 1 Launcher 3 | . . . . . . . . . . . . 1 . . . . . . . 1 . . . 1 . . . . . Special Weapon 3 | . . . . . . . 1 . . 1 . . . . 1 . . . . . . . . . . . . . . Impact Weapon . | . . . . . . . . . . . . . . . . . . . . . . . . . . . . . . Slashing Weapon 3 | . . . 1 . . . . 1 . . . . . . . . . . . . . . 1 . . . . . . Piercing Weapon 4 | . . . . . . . . . . . . . . . . . . . . . . . . 2 . 1 . 1 . Special Melee Weapon . | . . . . . . . . . . . . . . . . . . . . . . . . . . . . . . Unidentified Prototypes 27 | . . . 2 2 . . . . . . . . . . 2 . . . . 5 . . 2 11 . 1 . 1 1 Corrupted Parts 1 | . . . . . . . . . . . . . . . . . . . . . . . . . . . . . 1 System Corruption 14 | . . . . . . . . . . . . . . . . . . . . . . . . . . . . . 14 Parts Lost 28 | . 1 1 4 1 . . . 4 . 1 . . . . . . 1 1 . 1 . 1 . 3 . . . . 9 Power 5 | . 1 . 1 . . . . 2 . . . . . . . . . . . . . . . 1 . . . . . Propulsion 5 | . . . . . . . . . . . . . . . . . . 1 . . . . . 2 . . . . 2 Utility 11 | . . . 1 . . . . 2 . 1 . . . . . . 1 . . 1 . 1 . . . . . . 4 Weapon 7 | . . 1 2 1 . . . . . . . . . . . . . . . . . . . . . . . . 3 Highest Loss Streak 6 | . 1 1 1 1 . . . 2 . 1 . . . . . . 1 1 . 1 . 1 . 1 . . . . 6 To Critical Strikes . | . . . . . . . . . . . . . . . . . . . . . . . . . . . . . . Average Backups 17 | 2 7 11 20 24 25 20 10 9 10 9 8 9 10 9 10 10 9 9 9 12 13 14 14 18 23 22 21 22 20 Power 1 | . 1 1 1 1 2 1 1 . . . . . 1 1 1 1 1 2 2 2 2 2 2 1 1 1 1 1 2 Propulsion 5 | 1 2 3 6 13 14 8 2 2 2 2 2 2 1 1 1 2 2 1 1 1 2 1 2 2 2 2 2 2 4 Utility 6 | . 2 4 6 4 4 6 4 4 4 4 3 3 5 5 4 5 3 4 4 4 3 3 3 8 14 14 13 13 10 Weapon 3 | . 1 3 4 3 3 1 1 2 3 3 2 1 2 1 1 1 1 1 1 3 4 4 4 5 5 4 4 4 3 Tool/Special . | . . . . . . . . . . . . . . . . . . . . . . . . . . . . . . Unused Backups 63 | . 1 . 1 2 1 5 3 1 . . . 4 1 . 3 . . . . . . . 3 29 . 1 . 1 7 Power 10 | . 1 . . . . . . 1 . . . 1 . . 1 . . . . . . . 2 1 . 1 . . 2 Propulsion 15 | . . . . . 1 3 1 . . . . 2 . . 1 . . . . . . . . 6 . . . . 1 Utility 24 | . . . 1 . . 1 2 . . . . 1 1 . 1 . . . . . . . . 13 . . . 1 3 Weapon 12 | . . . . 2 . 1 . . . . . . . . . . . . . . . . . 8 . . . . 1 Tool/Special 2 | . . . . . . . . . . . . . . . . . . . . . . . 1 1 . . . . . Average Slot Usage (%) 91 | . 100 100 99 100 100 89 83 78 73 73 84 81 82 82 87 94 91 89 89 85 78 81 85 87 85 85 87 90 86 Engine 5 | . 14 14 10 11 11 3 . 1 6 6 6 2 . . . . . . . . . . . . . . . . . Core 2 | . . . . . . 7 6 4 . . . 2 5 5 5 5 5 5 5 5 5 4 . 1 8 8 8 8 8 Treads 8 | . . . 32 33 33 3 . . . . . . . . . . . . . . . . . . . . . . . Leg 3 | . 28 28 . . . . . . . . . . . . . . . . . . . . . . . . . . . Wheel 3 | . . . . . . 29 . . . . . . . . . . . . . . . . . . . . . . . Hover 4 | . . . . . . . . . . . . . . . . . . . . . . . . 7 30 30 28 28 28 Flight 10 | . . . . . . . 32 33 33 33 33 32 29 29 29 29 26 26 26 26 26 29 33 24 . . . . . Device 11 | . 14 14 . . . 1 16 15 13 13 20 15 17 17 16 17 15 15 15 15 10 14 19 17 21 21 27 28 25 Storage 8 | . 14 14 11 11 11 10 6 6 6 6 6 5 5 5 5 5 5 5 5 5 5 4 4 4 4 4 4 4 4 Processor 6 | . . . . . . . 4 6 6 6 12 11 11 11 11 11 10 10 10 14 15 12 9 17 13 13 12 12 9 Protection 4 | . . . 10 11 11 7 5 6 6 4 . 2 5 5 5 5 5 5 5 5 5 4 4 . . . . . 2 Ballistic Gun 14 | . 12 28 32 32 33 23 . . . . . . . . . . . . . . . . . 2 . . . . . Slashing Weapon 2 | . . . . . . 1 6 3 . 1 4 5 5 5 5 5 5 5 5 1 3 4 4 3 4 4 4 4 1 Peak Build Rating 299 | 7 10 11 19 24 23 28 54 48 39 42 57 71 66 72 80 83 91 92 92 103 99 110 138 261 281 280 296 299 299 Average Rating 95 | 5 7 10 17 21 23 22 42 40 39 39 51 59 66 66 73 80 88 87 89 94 93 103 119 217 277 277 293 293 270 On Entrance 92 | . 7 10 11 19 23 23 21 44 39 39 36 53 66 66 66 80 80 85 89 89 91 94 104 130 257 273 277 294 298 Avg Prop Armor Cover (%) 13 | . . . . . . 35 . 2 . . . 2 . . . . . . . . . 2 2 2 . . . . . Naked Turns . | . . . . . . . . . . . . . . . . . . . . . . . . . . . . . . Heaviest Build 132 | 14 22 30 103 102 102 102 25 26 24 27 25 28 27 27 30 30 33 33 34 44 39 40 49 74 89 100 98 111 132 Greatest Support 132 | 20 20 20 60 60 60 60 25 25 25 25 25 33 33 33 34 34 36 37 37 38 38 52 60 132 132 132 132 132 132 Greatest Overweight (x) 3 | 3 1 1 1 1 1 3 . 1 . 1 . . . . . . . . . 1 1 . . 2 . . . . 1 Average Overweight (x) . | . . . . 1 1 1 . . . . . . . . . . . . . . . . . . . . . . . Largest Inventory Capacity 25 | 8 10 15 25 25 25 25 25 10 10 10 10 10 10 10 10 10 10 10 10 15 15 15 15 25 25 25 25 25 25 Average Capacity 19 | 7 8 14 22 25 25 23 10 10 10 10 10 10 10 10 10 10 10 10 10 14 15 15 15 20 25 25 25 25 25 Most Carried 25 | 5 10 13 25 25 25 25 22 10 10 10 10 10 10 10 10 10 10 10 9 15 15 15 15 25 25 25 25 25 25 Average Carried 17 | 3 8 11 20 24 24 20 10 9 10 9 8 9 9 9 9 10 9 9 8 12 13 14 14 19 23 24 22 24 21 Final Capacity 25 | 8 10 15 25 25 25 25 10 10 10 10 10 10 10 10 10 10 10 10 10 15 15 15 15 25 25 25 25 25 25 Final Carried 25 | 5 10 13 24 25 25 22 10 10 10 10 10 10 10 10 10 10 10 9 9 14 14 15 14 25 24 25 23 24 12 Class Distribution -------------------- 21% | Scavenger-Sprinter 19% | Tank 18% | Mutant 10% | Scout 7% | Scavenger-Tank 5% | Commander-Tank 4% | Scavenger-Scout 3% | Sprinter Dominant Class ---------------- Mutant | -10/Materials Mutant | -10/Mines Scavenger-Tank | -9/Materials Commander-Tank | -9/Storage Tank | -9/Recycling Tank | -9/Scraptown Scout | -6/Factory Sprinter | -6/Extension Sprinter | -6/Cetus Sprinter | -6/Archives Scout | -6/Hub_04(d) Scout | -5/Factory Scout | -5/Upper Caves Scout | -5/Upper Caves Scout | -5/Zhirov Scout | -4/Proximity Caves Hacker-Scout | -4/Factory Scout | -4/Upper Caves Scout | -4/Upper Caves Scout | -4/Warlord Scout | -3/Proximity Caves Infiltrator-Ninja | -3/Research Infiltrator-Ninja | -3/Quarantine Scavenger-Sprinter | -3/Protoforge Scavenger-Sprinter | -2/Research Scavenger-Sprinter | -2/Testing Scavenger-Sprinter | -1/Access Scavenger-Sprinter | -1/Command Scavenger-Sprinter | -1/Access_0 Resources | -11 -10 -10 -9 -9 -9 -9 -6 -6 -6 -6 -6 -5 -5 -5 -5 -4 -4 -4 -4 -4 -3 -3 -3 -3 -2 -2 -1 -1 -1 ----------- Run | Yrd Mat Min Mat Sto Rec Scr Fac Ext Cet Arc Hub Fac Upp Upp Zhi Pro Fac Upp Upp War Pro Res Qua Frg Res Tes Acc Com Ac0 Matter Collected 11542 | 284 203 160 1110 502 73 240 230 90 . 30 . 159 36 20 50 . 95 . . 384 35 . 103 5546 73 653 796 348 322 Remotely 1744 | . . . . . . . . . . . . . . . . . . . . . . . . 1002 . . 742 . . Salvage Created 14381 | 134 544 226 1360 1004 222 . 20 633 . 34 . 373 . . 475 . 24 . . 7 . . . 4993 73 940 803 1105 1411 Parts 767 | 5 29 12 95 67 16 . 1 22 . 4 . 24 . . 9 . 4 . . 3 . . . 318 11 40 21 20 66 Haulers Intercepted 11 | . 1 . 5 4 . . . . . . . . . . . . . . . . . . . 1 . . . . . Recyclers Shooed 6 | . 3 . 1 . . . . 2 . . . . . . . . . . . . . . . . . . . . . Parts Field Recycled . | . . . . . . . . . . . . . . . . . . . . . . . . . . . . . . Retrieved Matter . | . . . . . . . . . . . . . . . . . . . . . . . . . . . . . . Parts Self-Destructed 13 | . . . . . . . . . . . . . . . 9 . . . 4 . . . . . . . . . . Prevented 4 | . . . . . . . . . . . . . . . . . . . 4 . . . . . . . . . . Parts Restored 13 | . . . . . . . . . . . . . . . . . . . . . . . . 13 . . . . . Faulty 13 | . . . . . . . . . . . . . . . . . . . . . . . . 13 . . . . . Kills | -11 -10 -10 -9 -9 -9 -9 -6 -6 -6 -6 -6 -5 -5 -5 -5 -4 -4 -4 -4 -4 -3 -3 -3 -3 -2 -2 -1 -1 -1 ------- Run | Yrd Mat Min Mat Sto Rec Scr Fac Ext Cet Arc Hub Fac Upp Upp Zhi Pro Fac Upp Upp War Pro Res Qua Frg Res Tes Acc Com Ac0 Combat Hostiles Destroyed 195 | . 9 7 26 15 4 . . . . . . . . . . . 4 . . 1 . . . 73 4 12 19 6 15 Melee 29 | . . . . . . . . . . . . . . . . . . . . . . . . 4 . 6 1 3 15 Guns 99 | . 9 7 26 15 4 . . . . . . . . . . . . . . . . . . 38 . . . . . Cannons 56 | . . . . . . . . . . . . . . . . . . . . . . . . 28 4 6 17 1 . AOE 5 | . . . . . . . . . . . . . . . . . 4 . . 1 . . . . . . . . . Classes Destroyed 25 | 2 4 2 2 . . . 1 . . . . . . . . . . . . 1 . . . 12 . 1 . . . Worker 5 | . 1 . . 1 . . . . . . . . . . . . . . . . . . . 1 . 1 1 . . Builder 3 | . . . 1 . . . . . . . . 2 . . . . . . . . . . . . . . . . . Tunneler 2 | 2 . . . . . . . . . . . . . . . . . . . . . . . . . . . . . Hauler 11 | . 1 . 5 4 . . . . . . . . . . . . . . . . . . . 1 . . . . . Recycler 12 | 1 1 1 . 3 . . . 4 . . . 2 . . . . . . . . . . . . . . . . . Mechanic 2 | . . . . . . . . . . . . . . . . . . . . . . . . 1 . 1 . . . Operator 4 | . . . . . . . 1 1 . 1 . 1 . . . . . . . . . . . . . . . . . Drone 4 | . . . . . . . . . . . . . . . . . . . . . . . . 4 . . . . . Watcher 15 | . 1 . 5 2 . . . . . . . 1 . . . . . . . . . . . 3 . 2 . 1 . Swarmer 24 | . . 3 7 3 . . . . . . . . . . . . 4 . . . . . . 7 . . . . . Cutter 12 | . . . . . . . . . . . . . . . . . . . . . . . . 3 4 . 5 . . Saboteur 1 | . . . . . . . . . . . . . . . . . . . . 1 . . . . . . . . . Grunt 49 | . 9 2 11 6 . . . . . . . . . . . . . . . . . . . 3 . 6 12 . . Duelist 3 | . . . . . . . . . . . . . . . . . . . . . . . . 3 . . . . . Protector 3 | . . . . . . . . . . . . . . . . . . . . . . . . 3 . . . . . Researcher 9 | . . . . . . . . . . . . . . . . . . . . . . . . 5 . 4 . . . Sentry 32 | . . . 8 6 4 . . . . . . . . . . . . . . . . . . 11 . . 2 1 . Demolisher 2 | . . 2 . . . . . . . . . . . . . . . . . . . . . . . . . . . Specialist 4 | . . . . . . . . . . . . . . . . . . . . . . . . . . 4 . . . Hunter 4 | . . . . . . . . . . . . . . . . . . . . . . . . 4 . . . . . Programmer 10 | . . . . . . . . . . . . . . . . . . . . . . . . 10 . . . . . M Guard 2 | . . . . . . . . . . . . . . . . . . . . . . . . . . . . 2 . Enhanced Grunt 4 | . . . . . . . . . . . . . . . . . . . . . . . . . . . . . 4 Enhanced Hunter 5 | . . . . . . . . . . . . . . . . . . . . . . . . . . . . . 5 Enhanced Programmer 4 | . . . . . . . . . . . . . . . . . . . . . . . . . . . . . 4 Decapitator 7 | . . . . . . . . . . . . . . . . . . . . . . . . 7 . . . . . Immortal 3 | . . . . . . . . . . . . . . . . . . . . . . . . 3 . . . . . Combat Programmer 2 | . . . . . . . . . . . . . . . . . . . . . . . . . . . . 2 . Striker 7 | . . . . . . . . . . . . . . . . . . . . . . . . 5 . 2 . . . Executioner 5 | . . . . . . . . . . . . . . . . . . . . . . . . 5 . . . . . Alpha 7 2 | . . . . . . . . . . . . . . . . . . . . . . . . 2 . . . . . V-Series 5 | . . . . . . . . . . . . . . . . . . . . . . . . 5 . . . . . Best Kill Streak 21 | 2 2 3 5 4 1 . 1 2 . 1 . 1 . . . . 4 . . 1 . . . 21 4 12 10 3 7 Combat Bots Only 20 | . 2 3 5 4 1 . . . . . . . . . . . 4 . . 1 . . . 20 4 7 10 3 7 Max Kills in Single Turn 3 | 1 2 2 2 2 1 . 1 1 . 1 . 1 . . . . 1 . . 1 . . . 3 2 1 2 1 1 Gunslinging 1 | . . . 1 . . . . . . . . . . . . . . . . . . . . . . . . . . Exploded 1 | . . . . . . . . . . . . . . . . . 1 . . 1 . . . . . . . . . Melee 1 | . . . . . . . . . . . . . . . . . . . . . . . . 1 . 1 1 1 1 Uniques/NPCs Destroyed 4 | . . . . . . . . . . . . . . . . . . . . . . . . . . . . 1 3 MAIN.C Shell (-1/Command) A8 (-1/Access_0) A6 (-1/Access_0) Architect (-1/Access_0) Combat | -11 -10 -10 -9 -9 -9 -9 -6 -6 -6 -6 -6 -5 -5 -5 -5 -4 -4 -4 -4 -4 -3 -3 -3 -3 -2 -2 -1 -1 -1 -------- Run | Yrd Mat Min Mat Sto Rec Scr Fac Ext Cet Arc Hub Fac Upp Upp Zhi Pro Fac Upp Upp War Pro Res Qua Frg Res Tes Acc Com Ac0 Hostile Shots Fired 1096 | . 44 21 102 49 8 . . 109 8 10 . 15 4 . . 3 12 8 4 6 17 34 2 232 12 24 41 31 300 Missed 554 | . 11 4 29 10 2 . . 74 6 7 . 11 2 . . 2 6 4 3 5 10 15 2 120 6 13 27 16 169 Hits 542 | . 33 17 73 39 6 . . 35 2 3 . 4 2 . . 1 6 4 1 1 7 19 . 112 6 11 14 15 131 Melee 36 | . . . . . . . . . . . . . . . . . . . . . . . . 25 3 . 6 . 2 Projectile 506 | . 33 17 73 39 6 . . 35 2 3 . 4 2 . . 1 6 4 1 1 7 19 . 87 3 11 8 15 129 AOE 23 | . . 11 . . . . . . . . . . . . . . . . . . . . . 7 1 . 2 1 1 Critical Strikes 56 | . . . 1 1 . . . . . . . 1 . . . . . 1 . . . . . 24 2 3 3 3 17 Actively Blocked 49 | . . . . . . . . . . . . . . . . . . . . . . . . 24 2 . 3 3 17 Part Disruptions 6 | . . . . . . . . . . . . . . . . . . . . . . . . . . . . 1 5 Damage Taken 12441 | . 407 524 881 574 85 . . 476 50 77 . 160 46 . . . 169 92 28 23 156 347 . 3623 225 270 360 393 3475 Core 1580 | . 43 177 98 15 . . . 65 29 24 . 38 . . . . 38 . . . 44 37 . 561 . . . . 411 Absorbed by Shields 1149 | . . . . . . . . . . . . . . . . . . . . . . 37 . 29 . . 113 123 847 Ignored by Resistances 525 | . . . . . . . . . . . . . . . . . . . . . . . . 111 5 16 4 58 331 Regen/Repaired (Parts) 3066 | . . . . 18 . . . . . . . . . . . . . . . 14 . 90 . 1931 36 243 154 290 290 Core Remaining (%) 74 | 100 . 12 . . . 71 . . . . 86 . . . . 96 . . . . 92 . . 49 . 100 . . 62 Volleys Fired 682 | 10 46 17 76 39 7 . 8 1 . . 1 3 . 2 . 1 11 7 1 7 3 5 11 351 4 21 31 13 6 Largest 3 | 2 2 2 3 3 3 . 1 1 . . 1 1 . 1 . 1 1 1 1 1 1 1 1 1 1 1 1 1 1 Hottest 140 | 90 100 46 69 69 69 . 90 90 . . 90 90 . 90 . 90 90 90 90 90 90 90 90 90 110 110 140 140 140 Shots Fired 991 | 20 92 34 223 115 21 . 8 1 . . 1 3 . 2 . 1 11 7 1 7 3 5 11 350 4 21 31 13 6 Gun 726 | 20 92 34 223 115 21 . . . . . . . . . . . . . . . . . . 213 . . . 5 3 Cannon 219 | . . . . . . . 8 1 . . 1 2 . 2 . 1 3 7 1 4 3 5 11 103 4 21 31 8 3 Launcher 46 | . . . . . . . . . . . . 1 . . . . 8 . . 3 . . . 34 . . . . . Special . | . . . . . . . . . . . . . . . . . . . . . . . . . . . . . . Kinetic 801 | 4 38 34 223 115 21 . . . . . . . . . . . . . . . . . . 304 4 21 28 7 2 Thermal 120 | 16 54 . . . . . 8 1 . . 1 2 . 2 . 1 3 7 1 2 3 2 11 1 . . 3 1 1 Explosive 46 | . . . . . . . . . . . . 1 . . . . 8 . . 3 . . . 34 . . . . . Electromagnetic . | . . . . . . . . . . . . . . . . . . . . . . . . . . . . . . Entropic 24 | . . . . . . . . . . . . . . . . . . . . 2 . 3 . 11 . . . 5 3 Robot Hit Streak 67 | 4 8 9 11 13 9 . . . . . . . . . . . 2 . . 1 . . . 67 6 25 34 19 10 Robot Miss Streak 5 | 2 2 2 5 1 1 . . . . . . . . . . . 1 . . 2 . . . 4 . . 2 1 . Penetration Max 2 | . . . . . . . . . . . . . . . . . . . . . . . . 2 1 1 2 . . Secondary Targets 6 | . 1 . 4 1 . . . . . . . . . . . . . . . . . . . . . . . . . Max Gunslinging Chain 1 | . 1 . 1 1 . . . . . . . . . . . . . . . . . . . . . . . . . Shots Hit Robots 849 | 11 60 23 133 77 14 . 1 12 . 1 . 7 . . 7 . 2 . . 1 . . . 288 3 35 26 37 111 Core Hits 425 | 4 29 12 51 34 8 . 1 5 . 1 . 4 . . 5 . 7 . . 1 . . . 160 3 17 16 18 49 Critical Kills 29 | . 1 1 1 1 . . . . . . . . . . . . . . . . . . . 23 . . . 2 . Critical Parts Destroyed 20 | . . 1 1 . . . . . . . . . . . . . . . . . . . . 18 . . . . . Critical Strikes 153 | . 2 2 2 1 . . . 1 . . . . . . . . . . . . . . . 46 1 13 13 18 54 Burn 1 | . 1 . . . . . . . . . . . . . . . . . . . . . . . . . . . . Meltdown 4 | . . . . . . . . . . . . . . . . . . . . . . . . 2 . . . 2 . Destroy 48 | . 1 2 2 1 . . . . . . . . . . . . . . . . . . . 42 . . . . . Blast 25 | . . . . . . . . . . . . . . . . . . . . . . . . . 1 10 13 1 . Sever 2 | . . . . . . . . 1 . . . . . . . . . . . . . . . . . 1 . . . Impale 73 | . . . . . . . . . . . . . . . . . . . . . . . . 2 . 2 . 15 54 Melee Attacks 375 | . . . . 3 . . 42 14 . 2 2 24 . 4 7 1 11 5 2 11 3 9 15 35 3 28 6 35 113 Impact . | . . . . . . . . . . . . . . . . . . . . . . . . . . . . . . Slashing 224 | . . . . 3 . . 42 14 . 2 2 24 . 4 7 1 11 5 2 11 3 9 15 29 3 20 6 7 4 Piercing 151 | . . . . . . . . . . . . . . . . . . . . . . . . 6 . 8 . 28 109 Sneak Attacks 26 | . . . . . . . . 9 . 1 . 5 . . . . . . . . . . . 9 . 2 . . . Combat Hostiles 1 | . . . . . . . . . . . . . . . . . . . . . . . . 1 . . . . . Follow-up Attacks 8 | . . . . . . . . . . . . . . . . . . . . . . . . . . 2 . 4 2 Damage Inflicted 37754 | 124 774 400 2110 1322 209 . 73 742 . 92 . 534 . . 592 . 312 . . 128 . . . 13991 365 3979 3439 2988 5580 Guns 11584 | 124 759 369 2061 1270 209 . . . . . . . . . . . . . . . . . . 6414 . . . 245 133 Cannons 11635 | . . . . . . . . . . . . . . . . . . . . 73 . . . 5226 365 2258 3378 290 45 Explosions 1248 | . . . . . . . . . . . . 12 . . . . 312 . . 55 . . . 480 . 389 . . . Melee 13140 | . . . . . . . 73 742 . 92 . 522 . . 592 . . . . . . . . 1871 . 1332 61 2453 5402 Ramming 147 | . 15 31 49 52 . . . . . . . . . . . . . . . . . . . . . . . . . Kinetic 21700 | 18 291 369 2061 1270 209 . . . . . . . . . . . . . . . . . . 11146 365 2258 3378 290 45 Thermal 574 | 106 468 . . . . . . . . . . . . . . . . . . . . . . . . . . . . Explosive 1248 | . . . . . . . . . . . . 12 . . . . 312 . . 55 . . . 480 . 389 . . . Electromagnetic . | . . . . . . . . . . . . . . . . . . . . . . . . . . . . . . Impact . | . . . . . . . . . . . . . . . . . . . . . . . . . . . . . . Slashing 5241 | . . . . . . . 73 742 . 92 . 522 . . 592 . . . . . . . . 1469 . 939 61 504 247 Piercing 7899 | . . . . . . . . . . . . . . . . . . . . . . . . 402 . 393 . 1949 5155 Entropic 945 | . . . . . . . . . . . . . . . . . . . . 73 . . . 494 . . . 245 133 Highest Corruption 20 | . . . . . . . . . . . 3 1 1 1 1 1 . . . . . . . 6 . 1 . 2 20 Average Corruption 3 | . . . . . . . . . . . 3 1 1 1 1 1 . . . . . . . 4 . 1 . 1 13 Corruption Purged 12 | . . . . . . . . . . . . . . . . . . . . . . . . 10 . . . 2 . Corruption Blocked . | . . . . . . . . . . . . . . . . . . . . . . . . . . . . . . Effects 47 | . . . . . . . . . . . 1 . . . . . . . . . . . . 25 . 4 . 3 14 Message Errors 16 | . . . . . . . . . . . 1 . . . . . . . . . . . . 9 . 2 . 1 3 Matter Fused 8 | . . . . . . . . . . . . . . . . . . . . . . . . 6 . . . . 2 Heat Flow Errors 5 | . . . . . . . . . . . . . . . . . . . . . . . . 3 . . . 1 1 Energy Discharges 9 | . . . . . . . . . . . . . . . . . . . . . . . . 4 . 1 . 1 3 Parts Rejected 2 | . . . . . . . . . . . . . . . . . . . . . . . . 1 . . . . 1 Data Loss (minor) 2 | . . . . . . . . . . . . . . . . . . . . . . . . 1 . 1 . . . Data Loss (major) 1 | . . . . . . . . . . . . . . . . . . . . . . . . . . . . . 1 Misdirections 3 | . . . . . . . . . . . . . . . . . . . . . . . . . . . . . 3 Weapon Failures 1 | . . . . . . . . . . . . . . . . . . . . . . . . 1 . . . . . Overload Shots . | . . . . . . . . . . . . . . . . . . . . . . . . . . . . . . Overflow Damage 2737 | . . . 5 . . . . 101 . . . 190 . . 140 . 5 . . . . . . 295 44 635 488 283 551 Projectiles 1108 | . . . . . . . . . . . . . . . . . . . . . . . . 137 44 358 488 81 . Explosions 5 | . . . . . . . . . . . . . . . . . 5 . . . . . . . . . . . . Melee 1624 | . . . 5 . . . . 101 . . . 190 . . 140 . . . . . . . . 158 . 277 . 202 551 Knockbacks 35 | . 1 . . 1 . . . . . . . . . . . . . . . . . . . 6 . 12 13 2 . Impact 2 | . 1 . . 1 . . . . . . . . . . . . . . . . . . . . . . . . . Kinetic 28 | . . . . . . . . . . . . . . . . . . . . . . . . 6 . 10 10 2 . Secondary 5 | . . . . . . . . . . . . . . . . . . . . . . . . . . 2 3 . . Self-Inflicted Damage 293 | . . . . . . . . . . . . . . . . . 89 . . . . . . 204 . . . . . Shots 10 | . . . . . . . . . . . . . . . . . 3 . . . . . . 7 . . . . . Rammed 7 | . . . 5 2 . . . . . . . . . . . . . . . . . . . . . . . . . Targets Rammed 24 | . 8 6 5 5 . . . . . . . . . . . . . . . . . . . . . . . . . Kicked 14 | . 8 6 . . . . . . . . . . . . . . . . . . . . . . . . . . . Crushed 3 | . . . . 3 . . . . . . . . . . . . . . . . . . . . . . . . . Highest Temperature 294 | 120 294 12 175 112 36 . 88 44 6 3 38 46 2 46 . 44 64 128 30 56 56 146 76 194 13 18 28 131 147 Average Temperature 43 | 50 82 5 52 26 13 . 34 9 3 3 20 14 2 19 . 29 25 45 22 24 24 36 33 72 6 8 11 29 52 Received Heat Transfer 1313 | . 234 21 288 198 27 . . 111 9 9 . 9 9 . . . . 9 . . 12 89 . 144 18 63 40 14 9 Effects 2 | . 2 . . . . . . . . . . . . . . . . . . . . . . . . . . . . Energy Bleed 1 | . 1 . . . . . . . . . . . . . . . . . . . . . . . . . . . . Interference 1 | . 1 . . . . . . . . . . . . . . . . . . . . . . . . . . . . Siege Activations . | . . . . . . . . . . . . . . . . . . . . . . . . . . . . . . Martial Activations . | . . . . . . . . . . . . . . . . . . . . . . . . . . . . . . Shielding Activations . | . . . . . . . . . . . . . . . . . . . . . . . . . . . . . . Robots Disrupted . | . . . . . . . . . . . . . . . . . . . . . . . . . . . . . . Combat Hostiles . | . . . . . . . . . . . . . . . . . . . . . . . . . . . . . . Robots Corrupted 2 | . . . 1 . . . . . . . . . . . . . . . . . . . . . . . 1 . . Combat Hostiles 1 | . . . . . . . . . . . . . . . . . . . . . . . . . . . 1 . . Parts Fried 6 | . . . 3 . . . . . . . . . . . . . . . . . . . . . . . 1 . 2 Impact Corruptions 2 | . . . 1 . . . . . . . . . . . . . . . . . . . . . . . 1 . . Robots Melted 4 | . . . . . . . . . . . . . . . . . . . . . . . . 2 . . . 2 . Combat Hostiles 4 | . . . . . . . . . . . . . . . . . . . . . . . . 2 . . . 2 . Parts Melted 5 | 2 . . . . . . . . . . . . . . . . . . . . . . . 2 . . . 1 . Heat Transferred 1692 | 273 1419 . . . . . . . . . . . . . . . . . . . . . . . . . . . . Parts Sabotaged . | . . . . . . . . . . . . . . . . . . . . . . . . . . . . . . Parts Stolen . | . . . . . . . . . . . . . . . . . . . . . . . . . . . . . . Parts Stripped . | . . . . . . . . . . . . . . . . . . . . . . . . . . . . . . Power Chain Reactions . | . . . . . . . . . . . . . . . . . . . . . . . . . . . . . . Alert | -11 -10 -10 -9 -9 -9 -9 -6 -6 -6 -6 -6 -5 -5 -5 -5 -4 -4 -4 -4 -4 -3 -3 -3 -3 -2 -2 -1 -1 -1 ------- Run | Yrd Mat Min Mat Sto Rec Scr Fac Ext Cet Arc Hub Fac Upp Upp Zhi Pro Fac Upp Upp War Pro Res Qua Frg Res Tes Acc Com Ac0 Maximum Alert Level 5 | . . . 1 2 . . . . . . . . . . . . . . . . . 1 1 5 3 4 4 3 . Low Security (%) 62 | 100 100 100 94 71 100 . 100 100 100 100 100 100 . . . . 100 . . . . 71 11 8 . . . 41 . Level 1 5 | . . . 5 9 . . . . . . . . . . . . . . . . . 28 88 9 . . . . . Level 2 8 | . . . . 19 . . . . . . . . . . . . . . . . . . . 23 . 43 6 . . Level 3 17 | . . . . . . . . . . . . . . . . . . . . . . . . 55 100 39 6 58 . Level 4 5 | . . . . . . . . . . . . . . . . . . . . . . . . 3 . 17 86 . . Level 5 . | . . . . . . . . . . . . . . . . . . . . . . . . . . . . . . High Security . | . . . . . . . . . . . . . . . . . . . . . . . . . . . . . . Max Security . | . . . . . . . . . . . . . . . . . . . . . . . . . . . . . . Peak Influence 1603 | 10 68 153 216 480 38 . 52 97 53 23 55 152 . . . . 167 . . . . 329 285 1603 1019 1126 1440 1010 . Initial 901 | . . 7 55 31 34 . . 3 53 17 . 17 . . . . . . . . . 30 180 108 901 567 487 720 . Average 329 | . 15 11 92 187 4 . 14 11 48 16 31 12 . . . . 74 . . . . 116 227 730 933 809 1200 964 . Influence Increases 9398 | 15 255 175 789 1000 136 . 203 406 . 6 58 300 15 . 15 . 285 75 30 20 75 391 273 2585 138 736 1043 374 . Destroy 0b10 Robot/C 4220 | . 180 140 520 500 80 . . 160 . . . . . . . . 80 . . 20 . . . 1460 80 360 520 120 . Destroy 0b10 Robot/NC 325 | 15 20 5 55 50 . . 5 25 . 5 . 30 . . 15 . . . . . . . . 70 . 20 5 5 . Destroy Leader 720 | . 34 30 160 162 . . . 10 . . . 2 . . . . 10 . . . . . . 176 10 34 80 12 . Allied During Kill 487 | . . . . 216 12 . . 31 . . . . . . . . . . . . . . . 9 . 19 200 . . Successful Hack 354 | . 19 . 20 10 14 . 47 14 . . 5 69 . . . . 44 . . . . 14 81 13 . . . 4 . Select Force Hacks 80 | . . . . . 30 . . . . . 50 . . . . . . . . . . . . . . . . . . Disable Machine 645 | . . . 15 30 . . 15 15 . . . 15 . . . . 15 . . . . 30 45 285 15 135 15 15 . Anti-Garrison Action 50 | . . . . . . . . . . . . . . . . . . . . . . . . . . . . 50 . Destroy Structure 807 | . 2 . 4 2 . . 46 1 . 1 3 34 . . . . 76 . . . . 32 42 62 33 168 133 168 . Partial Spotted 315 | . . . . . . . 90 . . . . . . . . . . . . . . 15 60 150 . . . . . Lose Combat Pursuer 1395 | . . . 15 30 . . . 150 . . . 150 15 . . . 60 75 30 . 75 300 45 360 . . 90 . . Influence Decreases 8424 | 15 235 52 858 986 224 . 195 317 54 46 25 184 87 66 29 . 158 128 84 40 30 115 401 1175 732 932 730 526 . Entered New Map 2582 | . . 13 88 43 54 . . 5 44 26 3 19 57 16 14 . . 48 15 20 . 15 141 85 702 442 326 406 . Time Decay 4187 | 15 225 29 580 513 170 . 160 161 10 10 22 165 30 50 15 . 148 70 60 20 30 70 160 770 30 170 404 100 . Search Patrol Dispatched 100 | . . . . . . . . . . . . . . . . . . . . . . . 100 . . . . . . Lost Part 155 | . 10 10 40 10 . . . 15 . 10 . . . . . . 10 10 . . . 10 . 30 . . . . . Lost Ally 650 | . . . . 120 . . 35 136 . . . . . . . . . . 9 . . 20 . 290 . 20 . 20 . Purge Threat 750 | . . . 150 300 . . . . . . . . . . . . . . . . . . . . . 300 . . . Squads Dispatched 66 | . 2 . 2 4 . . 8 . . . 2 6 . . . . 9 . . . . 6 2 10 1 4 8 2 . Investigation 19 | . 1 . . . . . 4 . . . 2 3 . . . . 3 . . . . 2 . 3 . . . 1 . Extermination 12 | . . . . . . . 1 . . . . 3 . . . . 1 . . . . 1 2 1 . 1 1 1 . Reinforcement 18 | . 1 . 2 1 . . . . . . . . . . . . 2 . . . . 3 . 6 1 1 1 . . Assault 8 | . . . . . . . . . . . . . . . . . . . . . . . . . . 2 6 . . Garrison 9 | . . . . 3 . . 3 . . . . . . . . . 3 . . . . . . . . . . . . Intercept . | . . . . . . . . . . . . . . . . . . . . . . . . . . . . . . Searches Triggered 1 | . . . . . . . . . . . . . . . . . . . . . . . 1 . . . . . . Unchained Authorized 2 | . . . . . . . . . . . . . . . . . . . . . . . . . . 1 1 . . Construction Impeded . | . . . . . . . . . . . . . . . . . . . . . . . . . . . . . . Haulers Reinforced . | . . . . . . . . . . . . . . . . . . . . . . . . . . . . . . Active Scanning Responses . | . . . . . . . . . . . . . . . . . . . . . . . . . . . . . . Cargo Convoy Interrupts . | . . . . . . . . . . . . . . . . . . . . . . . . . . . . . . Stealth | -11 -10 -10 -9 -9 -9 -9 -6 -6 -6 -6 -6 -5 -5 -5 -5 -4 -4 -4 -4 -4 -3 -3 -3 -3 -2 -2 -1 -1 -1 --------- Run | Yrd Mat Min Mat Sto Rec Scr Fac Ext Cet Arc Hub Fac Upp Upp Zhi Pro Fac Upp Upp War Pro Res Qua Frg Res Tes Acc Com Ac0 Distress Signals 32 | . . . 5 3 . . . 1 1 . . . . . . . . . . . . 1 . 19 . 1 . 1 . Communications Jammed 22 | . . . . . . . . . . . . . . . . . . . . . . 9 . 13 . . . . . Distress Signals 22 | . . . . . . . . . . . . . . . . . . . . . . 9 . 13 . . . . . Times Spotted 509 | . 17 7 32 29 2 . 1 31 5 4 3 16 5 . . 1 13 5 4 22 10 25 7 171 10 19 28 10 32 Peak Tracking Total 21 | . 3 3 5 4 1 . 1 12 5 4 3 10 5 . . 1 5 5 4 11 5 21 3 11 7 5 11 4 6 Tactical Retreats 38 | . . . 1 2 . . . 5 . . . 3 1 . . . 1 2 2 . 2 3 1 13 . . 2 . . Traps | -11 -10 -10 -9 -9 -9 -9 -6 -6 -6 -6 -6 -5 -5 -5 -5 -4 -4 -4 -4 -4 -3 -3 -3 -3 -2 -2 -1 -1 -1 ------- Run | Yrd Mat Min Mat Sto Rec Scr Fac Ext Cet Arc Hub Fac Upp Upp Zhi Pro Fac Upp Upp War Pro Res Qua Frg Res Tes Acc Com Ac0 Traps Triggered 19 | . 1 . . 1 . . 1 1 . . 1 1 . . . . . . . . . 1 . 10 . 1 . 1 . Indirectly . | . . . . . . . . . . . . . . . . . . . . . . . . . . . . . . Trap Hack Attempts . | . . . . . . . . . . . . . . . . . . . . . . . . . . . . . . Triggered . | . . . . . . . . . . . . . . . . . . . . . . . . . . . . . . Disarmed . | . . . . . . . . . . . . . . . . . . . . . . . . . . . . . . Reprogrammed . | . . . . . . . . . . . . . . . . . . . . . . . . . . . . . . Reused . | . . . . . . . . . . . . . . . . . . . . . . . . . . . . . . Traps Extracted . | . . . . . . . . . . . . . . . . . . . . . . . . . . . . . . Installed . | . . . . . . . . . . . . . . . . . . . . . . . . . . . . . . Triggered . | . . . . . . . . . . . . . . . . . . . . . . . . . . . . . . Machines | -11 -10 -10 -9 -9 -9 -9 -6 -6 -6 -6 -6 -5 -5 -5 -5 -4 -4 -4 -4 -4 -3 -3 -3 -3 -2 -2 -1 -1 -1 ---------- Run | Yrd Mat Min Mat Sto Rec Scr Fac Ext Cet Arc Hub Fac Upp Upp Zhi Pro Fac Upp Upp War Pro Res Qua Frg Res Tes Acc Com Ac0 Machines Disabled 57 | . . . 1 2 . . 1 1 . . . 1 . . . . 1 . . 1 1 2 3 22 1 10 1 5 4 Max in Single Turn 2 | . . . 1 1 . . 1 1 . . . 1 . . . . 1 . . 1 1 1 1 1 1 2 1 2 1 Garrison Access 2 | . . . . . . . 1 . . . . . . . . . . . . . . . . 1 . . . . . Phase Generator 1 | . . . . . . . . . . . . . . . . . . . . . . . . . . . . 1 . Network Hub 1 | . . . . . . . . . . . 1 . . . . . . . . . . . . . . . . . . Machines Repaired . | . . . . . . . . . . . . . . . . . . . . . . . . . . . . . . Machines Dismantled 1 | . . . . . . . . . . . . . . . . . . . . 1 . . . . . . . . . Machines Sabotaged 1 | . . . . . . . . . . . 1 . . . . . . . . . . . . . . . . . . Overloaded Fab Kills . | . . . . . . . . . . . . . . . . . . . . . . . . . . . . . . Hacking | -11 -10 -10 -9 -9 -9 -9 -6 -6 -6 -6 -6 -5 -5 -5 -5 -4 -4 -4 -4 -4 -3 -3 -3 -3 -2 -2 -1 -1 -1 --------- Run | Yrd Mat Min Mat Sto Rec Scr Fac Ext Cet Arc Hub Fac Upp Upp Zhi Pro Fac Upp Upp War Pro Res Qua Frg Res Tes Acc Com Ac0 Machines Accessed 128 | . 8 . 11 9 9 3 14 4 . . 3 16 1 . 4 . 6 . . 6 . 6 10 7 3 5 1 2 . Terminals 73 | . 6 . 8 7 5 . 7 3 . . 3 8 . . . . 2 . . . . 2 8 3 3 5 1 2 . Fabricators 5 | . . . . . . . 2 . . . . 1 . . . . 1 . . . . 1 . . . . . . . Repair Stations 2 | . . . . 1 . . . . . . . . . . . . . . . . . 1 . . . . . . . Recycling Units 22 | . 2 . 1 1 4 . 3 1 . . . 4 . . . . 2 . . . . 1 . 3 . . . . . Scanalyzers 8 | . . . 2 . . . 1 . . . . 2 . . . . 1 . . . . . 2 . . . . . . Garrison Access 4 | . . . . . . . 1 . . . . 1 . . . . . . . . . 1 . 1 . . . . . Total Hacks 318 | . 18 . 28 21 20 27 25 6 . . 7 35 1 . 17 . 17 . . 12 . 16 25 23 4 13 1 2 . Successful 180 | . 12 . 14 17 9 27 10 4 . . 3 14 1 . 17 . 11 . . 12 . 4 9 11 . 3 1 1 . Failed 136 | . 6 . 14 4 11 . 14 2 . . 4 20 . . . . 6 . . . . 12 16 12 4 10 . 1 . Catastrophic 30 | . . . 3 . 1 . 5 . . . 1 7 . . . . 1 . . . . 2 3 2 2 2 . 1 . Database Lockouts 2 | . . . . . . . 1 . . . . 1 . . . . . . . . . . . . . . . . . Manual 139 | . 7 . 19 15 14 . 13 1 . . 4 20 . . . . 6 . . . . 8 8 16 . 8 . . . Terminals 174 | . 16 . 21 18 13 . 13 4 . . 7 18 . . . . 7 . . . . 5 20 12 4 13 1 2 . Fabricators 12 | . . . . . . . 4 . . . . 2 . . . . 2 . . . . 4 . . . . . . . Repair Stations 4 | . . . . 2 . . . . . . . . . . . . . . . . . 2 . . . . . . . Recycling Units 42 | . 2 . 3 1 7 . 4 2 . . . 9 . . . . 5 . . . . 1 . 8 . . . . . Scanalyzers 18 | . . . 4 . . . 2 . . . . 4 . . . . 3 . . . . . 5 . . . . . . Garrison Access 11 | . . . . . . . 2 . . . . 2 . . . . . . . . . 4 . 3 . . . . . Terminal Hacks 105 | . 5 . 3 7 . 27 5 4 . . 1 7 1 . 17 . 2 . . 12 . . 5 4 . 3 1 1 . Record 38 | . . . . . . 27 . . . . . . . . 5 . . . . 6 . . . . . . . . . Part Schematic 4 | . . . . . . . . . . . . . . . 4 . . . . . . . . . . . . . . Robot Analysis 5 | . 1 . . . . . . . . . . . . . 4 . . . . . . . . . . . . . . Prototype ID Bank 8 | . . . . . . . . . . . . . . . 4 . . . . 4 . . . . . . . . . Open Door 8 | . . . . 1 . . . 2 . . . . 1 . . . . . . 2 . . . . . 1 . 1 . Branch Access Points 2 | . . . . . . . . . . . . 1 . . . . 1 . . . . . . . . . . . . Terminal Index 1 | . . . . . . . . . . . . . . . . . . . . . . . 1 . . . . . . Alert Level 1 | . . . . . . . . . . . . . . . . . . . . . . . . . . . 1 . . Unreport Threat 5 | . . . 1 2 . . . . . . . . . . . . . . . . . . . . . 2 . . . Locate Traps 17 | . 4 . . 3 . . 3 1 . . . 3 . . . . 1 . . . . . 1 1 . . . . . Recall Extermination 1 | . . . . . . . . . . . . . . . . . . . . . . . 1 . . . . . . Recall Reinforcements 1 | . . . . . . . . . . . . . . . . . . . . . . . . 1 . . . . . Hauler Manifests 2 | . . . 1 1 . . . . . . . . . . . . . . . . . . . . . . . . . Registered Components 1 | . . . 1 . . . . . . . . . . . . . . . . . . . . . . . . . . Zone Layout 11 | . . . . . . . 2 1 . . 1 3 . . . . . . . . . . 2 2 . . . . . Fabricator Hacks 3 | . . . . . . . . . . . . 1 . . . . 1 . . . . 1 . . . . . . . Network Status 3 | . . . . . . . . . . . . 1 . . . . 1 . . . . 1 . . . . . . . Repair Station Hacks 2 | . . . . 2 . . . . . . . . . . . . . . . . . . . . . . . . . Scan Component 1 | . . . . 1 . . . . . . . . . . . . . . . . . . . . . . . . . Repair 1 | . . . . 1 . . . . . . . . . . . . . . . . . . . . . . . . . Recycling Unit Hacks 7 | . 1 . 1 1 2 . . . . . . . . . . . 2 . . . . . . . . . . . . Retrieve Components 7 | . 1 . 1 1 2 . . . . . . . . . . . 2 . . . . . . . . . . . . Scanalyzer 9 | . . . 3 . . . 1 . . . . 1 . . . . 2 . . . . . 2 . . . . . . Retrieve Study 9 | . . . 3 . . . 1 . . . . 1 . . . . 2 . . . . . 2 . . . . . . Garrison Access Hacks 2 | . . . . . . . 1 . . . . . . . . . . . . . . . . 1 . . . . . Seal Access 2 | . . . . . . . 1 . . . . . . . . . . . . . . . . 1 . . . . . Unauthorized Hacks 52 | . 6 . 7 7 7 . 3 . . . 2 5 . . . . 4 . . . . 3 2 6 . . . . . Terminals 36 | . 6 . 7 7 6 . . . . . 2 1 . . . . 1 . . . . . 2 4 . . . . . Assimilate 2 | . . . . . . . . . . . . . . . . . . . . . . . 1 1 . . . . . Botnet 12 | . 1 . 2 2 2 . . . . . . 1 . . . . 1 . . . . . 1 2 . . . . . Disrupt 1 | . . . . . . . . . . . . . . . . . . . . . . . . 1 . . . . . Skim 19 | . 5 . 5 5 4 . . . . . . . . . . . . . . . . . . . . . . . . Sabotage 2 | . . . . . . . . . . . 2 . . . . . . . . . . . . . . . . . . Fabricators 3 | . . . . . . . . . . . . 1 . . . . 1 . . . . 1 . . . . . . . Fabnet 3 | . . . . . . . . . . . . 1 . . . . 1 . . . . 1 . . . . . . . Repair Stations 1 | . . . . . . . . . . . . . . . . . . . . . . 1 . . . . . . . Patch 1 | . . . . . . . . . . . . . . . . . . . . . . 1 . . . . . . . Recycling Units 12 | . . . . . 1 . 3 . . . . 3 . . . . 2 . . . . 1 . 2 . . . . . Tunnel 1 | . . . . . 1 . . . . . . . . . . . . . . . . . . . . . . . . Fedlink 11 | . . . . . . . 3 . . . . 3 . . . . 2 . . . . 1 . 2 . . . . . Scanalyzers . | . . . . . . . . . . . . . . . . . . . . . . . . . . . . . . Garrison Access . | . . . . . . . . . . . . . . . . . . . . . . . . . . . . . . Data Cores Recovered 1 | . . . . . . . . . . . . 1 . . . . . . . . . . . . . . . . . Used 1 | . . . . . . . . . . . . 1 . . . . . . . . . . . . . . . . . Hacking Detections 89 | . 7 . 10 7 8 . 12 3 . . 1 12 . . . . 2 . . . . 5 8 6 3 4 . 1 . Full Trace Events 1 | . . . . . . . . . . . . . . . . . . . . . . . . 1 . . . . . Feedback Events . | . . . . . . . . . . . . . . . . . . . . . . . . . . . . . . Feedback Blocked . | . . . . . . . . . . . . . . . . . . . . . . . . . . . . . . Robot Schematics Acquired 9 | . . . . . . . . . . . . . . . . . . . . . . . . 7 . 2 . . . Robots Built . | . . . . . . . . . . . . . . . . . . . . . . . . . . . . . . Authchips . | . . . . . . . . . . . . . . . . . . . . . . . . . . . . . . Time . | . . . . . . . . . . . . . . . . . . . . . . . . . . . . . . Total Robot Build Rating . | . . . . . . . . . . . . . . . . . . . . . . . . . . . . . . Part Schematics Acquired 22 | . . . . . . . . . . . . . . . 4 . . . . . . . . 16 . 2 . . . Parts Built . | . . . . . . . . . . . . . . . . . . . . . . . . . . . . . . Authchips . | . . . . . . . . . . . . . . . . . . . . . . . . . . . . . . Time . | . . . . . . . . . . . . . . . . . . . . . . . . . . . . . . Total Part Build Rating . | . . . . . . . . . . . . . . . . . . . . . . . . . . . . . . Part Studies Acquired 8 | . . . 2 . . . 1 . . . . 1 . . . . 2 . . . . . 2 . . . . . . Parts Repaired 1 | . . . . 1 . . . . . . . . . . . . . . . . . . . . . . . . . Time 38 | . . . . 38 . . . . . . . . . . . . . . . . . . . . . . . . . Parts Recycled . | . . . . . . . . . . . . . . . . . . . . . . . . . . . . . . Recycled Matter . | . . . . . . . . . . . . . . . . . . . . . . . . . . . . . . Retrieved Matter . | . . . . . . . . . . . . . . . . . . . . . . . . . . . . . . Retrieved Components 15 | . 1 . 9 1 2 . . . . . . . . . . . 2 . . . . . . . . . . . . Parts Scanalyzed . | . . . . . . . . . . . . . . . . . . . . . . . . . . . . . . Part Schematics Acquired . | . . . . . . . . . . . . . . . . . . . . . . . . . . . . . . Parts Damaged . | . . . . . . . . . . . . . . . . . . . . . . . . . . . . . . Bothacking | -11 -10 -10 -9 -9 -9 -9 -6 -6 -6 -6 -6 -5 -5 -5 -5 -4 -4 -4 -4 -4 -3 -3 -3 -3 -2 -2 -1 -1 -1 ------------ Run | Yrd Mat Min Mat Sto Rec Scr Fac Ext Cet Arc Hub Fac Upp Upp Zhi Pro Fac Upp Upp War Pro Res Qua Frg Res Tes Acc Com Ac0 Used RIF Installer . | . . . . . . . . . . . . . . . . . . . . . . . . . . . . . . Robots Hacked 31 | . . . . . . . . . . . . . . . . . . . 1 1 . 1 . 27 . 1 . . . Non-combat . | . . . . . . . . . . . . . . . . . . . . . . . . . . . . . . Combat 31 | . . . . . . . . . . . . . . . . . . . 1 1 . 1 . 27 . 1 . . . Robot Hacks Applied . | . . . . . . . . . . . . . . . . . . . . . . . . . . . . . . Relay Couplers Released . | . . . . . . . . . . . . . . . . . . . . . . . . . . . . . . Fabnet Peak Effective % 4 | . . . . . . . . . . . . . . . . 3 3 3 3 3 4 4 4 4 4 4 1 1 1 Autooverrided 31 | . . . . . . . . . . . . . . . . . . . 1 1 . 1 . 27 . 1 . . . Robots Rewired 9 | . . . . . . . . 9 . . . . . . . . . . . . . . . . . . . . . Allies Hacked 1 | . . . . . . . . . . . . . . . . . . . . . . . . 1 . . . . . Hacks Repelled . | . . . . . . . . . . . . . . . . . . . . . . . . . . . . . . Allies | -11 -10 -10 -9 -9 -9 -9 -6 -6 -6 -6 -6 -5 -5 -5 -5 -4 -4 -4 -4 -4 -3 -3 -3 -3 -2 -2 -1 -1 -1 -------- Run | Yrd Mat Min Mat Sto Rec Scr Fac Ext Cet Arc Hub Fac Upp Upp Zhi Pro Fac Upp Upp War Pro Res Qua Frg Res Tes Acc Com Ac0 Total Allies 62 | . . . . 10 . . . 13 . . . . . . . . . . 1 1 . 1 1 28 . 1 3 3 . Largest Group 10 | . . . . 10 3 3 3 5 . . . . . . . . . . 1 1 . 1 1 2 . 1 3 . . Highest-Rated Group 379 | . . . . 88 32 32 32 132 . . . . . . . . . . 12 54 . 47 45 128 . 58 379 . . Highest-Rated Ally 135 | . . . . 16 16 16 16 39 . . . . . . . . . . 12 54 . 47 45 69 . 58 135 . . Total Orders 11 | . . . . . . 4 . . . . . . . . . . . . . . . . . . . 1 . 1 5 STAY 2 | . . . . . . 2 . . . . . . . . . . . . . . . . . . . . . . . FOLLOW 2 | . . . . . . 2 . . . . . . . . . . . . . . . . . . . . . . . RETURN 7 | . . . . . . . . . . . . . . . . . . . . . . . . . . 1 . 1 5 Ally Attacks 351 | . . . . 61 1 . 1 52 . . . . . . . . . . 4 5 . 2 . 32 . 7 26 3 157 Total Damage 12318 | . . . . 571 . . 12 1220 . . . . . . . . . . 26 17 . 61 . 1040 . 430 1396 24 7521 Kills 36 | . . . . 10 . . . 8 . . . . . . . . . . . . . . . 2 . 2 7 . 7 Allies Corrupted 4 | . . . . . . . . . . . . . . . . . . . . . . . . . . . . 1 3 Allies Melted . | . . . . . . . . . . . . . . . . . . . . . . . . . . . . . . Intel | -11 -10 -10 -9 -9 -9 -9 -6 -6 -6 -6 -6 -5 -5 -5 -5 -4 -4 -4 -4 -4 -3 -3 -3 -3 -2 -2 -1 -1 -1 ------- Run | Yrd Mat Min Mat Sto Rec Scr Fac Ext Cet Arc Hub Fac Upp Upp Zhi Pro Fac Upp Upp War Pro Res Qua Frg Res Tes Acc Com Ac0 Active Infowar (turns) 14732 | 34 918 2257 181 . . 394 463 583 . . 60 516 71 102 88 60 368 145 139 587 357 150 324 4829 63 351 975 368 349 Optics 9898 | . . . . . . . . . . . 56 516 71 102 88 60 368 145 139 587 357 150 324 4829 63 351 975 368 349 Sensors 3144 | . . . . . . . 202 . . . 60 516 71 102 86 60 368 145 139 587 357 150 301 . . . . . . A.S.S. 1639 | . . . . . . . . . . . . . . . . . . . . . . . . 1639 . . . . . Structural 5899 | . . . . . . 394 463 583 . . . 325 71 102 88 60 368 145 139 587 357 150 324 220 60 351 975 75 62 Seismic 3640 | 34 918 2257 181 . . . 250 . . . . . . . . . . . . . . . . . . . . . . Cloaking 2059 | . . . . . . . . . . . . . . . . . . . . . . . . 707 52 254 975 71 . Jamming 344 | . . . . . . . . . . . . . . . . . . . . . . 70 192 82 . . . . . Robot Analysis Total 5 | . 1 . . . . . . . . . . . . . 4 . . . . . . . . . . . . . . Derelict Logs Recovered 3 | . . 2 . . . . . . . . . . . . . . . . 1 . . . . . . . . . . Drone Launches 45 | . . . . . . . . . . . . . . . . . . . . . . . . . . 6 . 11 28 Drone Recoveries 33 | . . . . . . . . . . . . . . . . . . . . . . . . . . 6 . 5 22 Exploration | -11 -10 -10 -9 -9 -9 -9 -6 -6 -6 -6 -6 -5 -5 -5 -5 -4 -4 -4 -4 -4 -3 -3 -3 -3 -2 -2 -1 -1 -1 ------------- Run | Yrd Mat Min Mat Sto Rec Scr Fac Ext Cet Arc Hub Fac Upp Upp Zhi Pro Fac Upp Upp War Pro Res Qua Frg Res Tes Acc Com Ac0 Turns Passed 22633 | 134 939 2257 2508 1408 1782 2560 463 617 33 30 60 516 71 102 88 60 368 145 139 587 357 150 324 4829 63 351 975 368 349 Spaces Moved 24954 | 72 574 475 947 582 878 2108 1068 843 116 70 135 1284 210 280 205 193 962 346 456 1026 476 457 1000 8230 109 631 286 559 376 Core 420 | 10 . . . . . 410 . . . . . . . . . . . . . . . . . . . . . . . Treads 2537 | . . . 947 582 878 130 . . . . . . . . . . . . . . . . . . . . . . . Legs 1111 | 62 574 475 . . . . . . . . . . . . . . . . . . . . . . . . . . . Wheels 1568 | . . . . . . 1568 . . . . . . . . . . . . . . . . . . . . . . . Hover 3312 | . . . . . . . . . . . . . . . . . . . . . . . . 1351 109 631 286 559 376 Flight 16006 | . . . . . . . 1068 843 116 70 135 1284 210 280 205 193 962 346 456 1026 476 457 1000 6879 . . . . . Fastest Speed 7 | 50 120 120 160 200 200 50 28 28 28 28 28 25 28 28 27 27 27 26 26 25 25 12 7 7 33 33 33 33 28 Average Speed 55 | 117 125 172 226 200 200 115 28 34 28 30 28 26 28 28 27 27 27 26 26 26 25 19 20 21 33 33 33 33 33 Slowest Speed 240 | 200 190 190 240 200 200 200 28 98 28 98 28 28 28 28 28 27 27 27 26 97 97 22 22 176 33 33 33 36 96 Overloaded Moves 175 | . . . . . . . . . . . . . . . . . . . . . . 46 17 112 . . . . . Propulsion Burnouts . | . . . . . . . . . . . . . . . . . . . . . . . . . . . . . . Robots Hopped 81 | . . . . . . . 8 14 3 1 . 17 . . . . 1 3 . 12 . 4 6 12 . . . . . Potential Cave-ins 1 | . . . . . . . . . . . . . . . . . . . . . . . . . . . . . 1 Cave-ins Triggered . | . . . . . . . . . . . . . . . . . . . . . . . . . . . . . . Teleports 3 | . . . . . . . . . . . . . . . . . . . . . . . . 1 . . . 1 1 Exploration Rate (%) 53 | 5 83 64 71 79 99 93 36 56 50 64 17 46 49 59 61 44 20 61 63 93 68 24 89 73 5 81 10 32 22 Regions Visited 29 Branch Regions 21 Pre-discovered Areas 18 | . . 1 1 3 1 7 1 . . . . . . . 3 . . . . 1 . . . . . . . . . Known Exits Taken 24 | . 1 1 1 1 1 . 1 1 1 1 1 1 1 1 1 1 1 1 1 1 1 1 1 . 1 . 1 . . Unknown Exits Taken 5 | 1 . . . . . 1 . . . . . . . . . . . . . . . . . 1 . 1 . 1 . Scrap Searched 9 | . . 1 . . . 3 . . . . . . 2 2 . . . 1 . . . . . . . . . . . Spaces Dug 197 | . . . . 1 . . 48 . . 1 3 12 . 6 . 2 23 12 3 10 5 12 23 5 7 9 10 3 2 Terrain Destroyed 445 | . . . . 1 . . 48 . . 1 3 17 . 6 . 2 62 12 3 24 5 12 23 40 11 56 36 79 4 Melee 125 | . . . . 1 . . 40 . . 1 2 10 . 4 . 1 11 5 2 8 2 9 12 4 3 7 2 1 . Projectile 146 | . . . . . . . 8 . . . 1 2 . 2 . 1 3 7 1 2 3 3 11 30 8 18 34 8 4 AOE 174 | . . . . . . . . . . . . 5 . . . . 48 . . 14 . . . 6 . 31 . 70 . Terrain Rammed . | . . . . . . . . . . . . . . . . . . . . . . . . . . . . . . Walls Destroyed . | . . . . . . . . . . . . . . . . . . . . . . . . . . . . . . Machines Disabled . | . . . . . . . . . . . . . . . . . . . . . . . . . . . . . . Actions | -11 -10 -10 -9 -9 -9 -9 -6 -6 -6 -6 -6 -5 -5 -5 -5 -4 -4 -4 -4 -4 -3 -3 -3 -3 -2 -2 -1 -1 -1 --------- Run | Yrd Mat Min Mat Sto Rec Scr Fac Ext Cet Arc Hub Fac Upp Upp Zhi Pro Fac Upp Upp War Pro Res Qua Frg Res Tes Acc Com Ac0 Total 32268 | 98 707 1881 1169 738 890 2241 1180 1133 112 76 153 1406 221 295 226 196 1038 377 471 1305 708 493 1079 10887 123 715 1120 702 528 Wait 5241 | 4 49 1374 74 81 2 75 21 166 . . 9 73 10 6 . . 47 14 9 226 214 7 21 1892 . 19 784 64 . Move 24779 | 71 573 474 946 581 877 2107 1051 819 110 67 134 1252 209 279 204 192 959 340 455 1010 475 449 987 8206 108 629 285 555 375 Hop 58 | . . . . . . . 8 9 2 1 . 14 . . . . 1 2 . 3 . 3 6 9 . . . . . Pick Up 214 | 5 9 4 20 7 1 28 5 1 . . 2 7 1 . 5 . 2 . . 4 1 4 5 91 1 2 2 6 1 Fast Attach 84 | 7 3 . 5 3 . 6 4 4 . . 1 4 . . 3 . . . . 5 . 2 2 27 . 4 . 1 3 Attach 132 | . 1 1 6 1 . 4 16 6 . 3 3 8 . 2 2 . 2 1 1 10 6 6 8 18 2 1 4 6 14 Detach 77 | . . . 2 . . . 7 6 . 3 1 7 . 2 . . . . 1 14 5 3 7 6 1 1 2 4 5 Swap 202 | 1 7 3 18 9 1 . 3 . . . . 2 . . . 2 5 8 2 2 . 1 9 86 4 5 6 16 12 Drop 225 | . 11 2 17 9 2 21 15 3 . . . 12 1 . 5 . . . . 5 1 1 8 100 . 6 . 5 1 Fire 682 | 10 46 17 76 39 7 . 8 1 . . 1 3 . 2 . 1 11 7 1 7 3 5 11 351 4 21 31 13 6 Melee 365 | . . . . 3 . . 42 14 . 2 2 24 . 4 7 1 11 5 2 11 3 9 15 35 3 26 6 29 111 Ram . | . . . . . . . . . . . . . . . . . . . . . . . . . . . . . . Kick 14 | . 8 6 . . . . . . . . . . . . . . . . . . . . . . . . . . . Crush 10 | . . . 5 5 . . . . . . . . . . . . . . . . . . . . . . . . . Escape Stasis 88 | . . . . . . . . 15 . . . . . . . . . . . . . 3 . 66 . 1 . 3 . Rewire 89 | . . . . . . . . 89 . . . . . . . . . . . . . . . . . . . . . Trap . | . . . . . . . . . . . . . . . . . . . . . . . . . . . . . . Miscellaneous 8 | . . . . . . . . . . . . . . . . . . . . 8 . . . . . . . . . Route ------- -11/Scrapyard -10/Materials (discovered 6 exits: *Mat x3 / *Min x2 / Sub) -10/Mines (discovered 3 exits: *Mat / [*Exi] / Sub) -9/Materials (discovered 6 exits: *Mat x3 / *Min x2 / *Sto) -9/Storage (discovered 2 exits: *Mat / *Rec) -9/Recycling (discovered 2 exits: [*Fac] / *Scr) -9/Scraptown (discovered 2 exits: *Fac x2) -6/Factory (discovered 5 exits: *Fac x2 / *Low x2 / *Ext) -6/Extension (discovered 2 exits: *Fac / *Cet) -6/Cetus -6/Archives -6/Hub_04(d) (discovered 2 exits: *Fac x2) -5/Factory (discovered 3 exits: *Fac / *Upp x2) -5/Upper Caves -5/Upper Caves (discovered 2 exits: Fac / *Zhi) -5/Zhirov -4/Proximity Caves -4/Factory (discovered 2 exits: *Upp x2) -4/Upper Caves -4/Upper Caves -4/Warlord -3/Proximity Caves -3/Research (discovered 3 exits: *Res / *Qua x2) -3/Quarantine (discovered 3 exits: *Res / [*Sec] / *Frg) -3/Protoforge -2/Research -2/Testing -1/Access (discovered 2 exits: Sur / *Com) -1/Command (discovered 3 exits: Sur x2 / [*Ac0]) -1/Access_0 Near Former Tau Ceti IV History --------- Turn | Location | Event 10 | -11/Scrapyard | Discovered new exit (range 16) 135 | -11/Scrapyard | Entered Materials 308 | -10/Materials | Build established: Mutant 310 | -10/Materials | Discovered new exit (range 13) 366 | -10/Materials | Discovered new exit (range 11) 532 | -10/Materials | Identified exit to Mines 532 | -10/Materials | Identified exit to Subcaves 670 | -10/Materials | Learned location of 1 exit from Storage 714 | -10/Materials | Discovered new exit (range 15) 723 | -10/Materials | Learned location of 1 exit from Recycling 767 | -10/Materials | Loaded intel: 15 trap records 821 | -10/Materials | Learned 4 Materials zone layouts 851 | -10/Materials | Learned 2 Mines zone layouts 893 | -10/Materials | Identified exit to Materials 893 | -10/Materials | Learned location of 2 exits from Materials 943 | -10/Materials | Learned Storage emergency access door positions 1074 | -10/Materials | Entered Mines 1122 | -10/Mines | Learned location of 2 exits from Materials 1214 | -10/Mines | A weapon hastily lodged in a ceiling crevice suddenly fell to the ground 1411 | -10/Mines | Deemed a non-threat by the Exiles lab entrance 1411 | -10/Mines | Discovered new exit (range 5) 1537 | -10/Mines | Assembled infested the area 3214 | -10/Mines | Core integrity fell below 50% 3222 | -10/Mines | Core integrity fell below 20% 3314 | -10/Mines | Discovered exit to Materials (range 8) 3331 | -10/Mines | Entered Materials 3331 | -9/Materials | Evolved 2 slots: Propulsion x1, Weapon x1 3332 | -9/Materials | Identified exit to Materials 3332 | -9/Materials | Identified exit to Storage 3332 | -9/Materials | Identified exit to Mines 3785 | -9/Materials | Build established: Tank 4556 | -9/Materials | Build established: Scavenger-Tank 5327 | -9/Materials | Learned location of Mines (-9) 5388 | -9/Materials | Learned location of 2 exits from Materials 5481 | -9/Materials | Learned Storage terminal intel 5563 | -9/Materials | Learned 4 Materials zone layouts 5604 | -9/Materials | Learned Storage emergency access door positions 5839 | -9/Materials | Entered Storage 5840 | -9/Storage | Identified exit to Recycling 5842 | -9/Storage | Loaded intel: 10 terminal locations 6007 | -9/Storage | Assisted by bots powering up and referring to "LRC-V3" 6315 | -9/Storage | Build established: Commander-Tank 6354 | -9/Storage | Garrison activated, responded to threat 6937 | -9/Storage | Repaired Lgt. Nuclear Core 7003 | -9/Storage | Learned Materials stockpile data 7052 | -9/Storage | Learned location of Recycling (-9) 7130 | -9/Storage | Used back door to open Recycling access 7151 | -9/Storage | Learned location of 3 exits from Materials 7172 | -9/Storage | Learned Materials repair station intel 7240 | -9/Storage | Learned location of 1 exit from Storage 7247 | -9/Storage | Entered Recycling 7247 | -9/Recycling | Accompanied by 3 allies 7248 | -9/Recycling | Identified exit to Scraptown 7545 | -9/Recycling | Build established: Tank 7780 | -9/Recycling | Discovered new exit (range 5) 8973 | -9/Recycling | Scanned before Scraplab entrance 9001 | -9/Recycling | Entered Scraplab 9029 | -9/Recycling | Entered Scraptown 9029 | -9/Scraptown | Accompanied by 3 allies 9488 | -9/Scraptown | Discovered new exit (range 3) 9583 | -9/Scraptown | Visited Cyclists 9617 | -9/Scraptown | Visited Cave Peace 9761 | -9/Scraptown | Heard Great Nut preacher, LISTEN AND RECITE! 9838 | -9/Scraptown | Visited TADAMA 9851 | -9/Scraptown | Visited Red Mages 10042 | -9/Scraptown | Visited Assassins FH 10054 | -9/Scraptown | Visited SPCMW 10091 | -9/Scraptown | Visited Symbiants 10133 | -9/Scraptown | Visited UFD Registry 10135 | -9/Scraptown | Registered with UFD as "Pipecase" 10202 | -9/Scraptown | Entered Cyclist Reading Room 10207 | -9/Scraptown | Learned location of Zion (-6) 10311 | -9/Scraptown | Visited Chapter 10 10374 | -9/Scraptown | Visited Modified Component R&D 10415 | -9/Scraptown | Visited A0-MCA Data Center 10422 | -9/Scraptown | Given an A- rating by A0-MCA 10425 | -9/Scraptown | Found A0-MCA's Component Scanner 10451 | -9/Scraptown | Visited DA-N13 Charitable Foundation 10456 | -9/Scraptown | Found DCF Scrap (31 items) 10494 | -9/Scraptown | Visited Infowarlord's Domain 10504 | -9/Scraptown | Found Exp. Sensor Array 10531 | -9/Scraptown | Visited Scrap Suit Storage 10555 | -9/Scraptown | Visited Junk Repository 10589 | -9/Scraptown | Visited Curators Association 10626 | -9/Scraptown | Visited LU-1G1's Boring Crew 10832 | -9/Scraptown | Visited Cartography Club 10927 | -9/Scraptown | Learned location of Storage (-9) 10927 | -9/Scraptown | Learned location of Archives (-6) 10927 | -9/Scraptown | Learned location of Quarantine (-3) 10927 | -9/Scraptown | Learned 8 Access zone layouts 10927 | -9/Scraptown | Learned 8 Lower Caves zone layouts 10927 | -9/Scraptown | Learned 8 Upper Caves zone layouts 10927 | -9/Scraptown | Learned 12 Upper Caves zone layouts 10927 | -9/Scraptown | Learned 20 Upper Caves zone layouts 10927 | -9/Scraptown | Learned 4 Hub_04(d) zone layouts 10927 | -9/Scraptown | Learned 4 Armory zone layouts 10927 | -9/Scraptown | Learned location of 2 exits from Factory 10927 | -9/Scraptown | Learned location of 1 exit from Proximity Caves 11079 | -9/Scraptown | Found Deep Structural Scanner 11195 | -9/Scraptown | Build established: Mutant 11291 | -9/Scraptown | Discovered new exit (range 3) 11519 | -9/Scraptown | Met Optimus 11519 | -9/Scraptown | Accepted into 0bPrime 11589 | -9/Scraptown | Entered Factory 11589 | -6/Factory | Accompanied by 3 allies 11589 | -6/Factory | Evolved 6 slots: Propulsion x2, Utility x4 11590 | -6/Factory | Identified exit to Lower Caves 11591 | -6/Factory | Identified exit to Factory 11591 | -6/Factory | Identified exit to Extension 11688 | -6/Factory | Discovered exit to Factory (range 6) 11703 | -6/Factory | Allied Derelicts emerged from ambush trap array 11722 | -6/Factory | Garrison activated, responded to threat 11800 | -6/Factory | Loaded intel: 8 recycling unit locations 11807 | -6/Factory | Central database locked down 11871 | -6/Factory | Learned location of Protoforge (-3) 12052 | -6/Factory | Entered Extension 12072 | -6/Extension | Rescued a captive Derelict 12082 | -6/Extension | Rescued a captive Derelict 12118 | -6/Extension | Rescued a captive Derelict 12119 | -6/Extension | Rescued a captive Derelict 12229 | -6/Extension | Lost 4 allies 12465 | -6/Extension | Spotted B-75 Beast 12635 | -6/Extension | Spotted B-75 Beast 12663 | -6/Extension | Discovered exit to Factory (range 16) 12663 | -6/Extension | Discovered new exit (range 15) 12667 | -6/Extension | Identified exit to Cetus 12669 | -6/Extension | Entered Cetus 12673 | -6/Cetus | Spotted Cetus Guard 12674 | -6/Cetus | Spotted Cetus Guard 12674 | -6/Cetus | Spotted Cetus Guard 12685 | -6/Cetus | Spotted Cetus Guard 12698 | -6/Cetus | Discovered new exit (range 16) 12701 | -6/Cetus | Identified exit to Archives 12702 | -6/Cetus | Entered Archives 12727 | -6/Archives | Discovered new exit (range 16) 12731 | -6/Archives | Identified exit to Hub_04(d) 12732 | -6/Archives | Entered Hub_04(d) 12754 | -6/Hub_04(d) | Network Hub disabled 12792 | -6/Hub_04(d) | Entered Factory 12792 | -5/Factory | Evolved 2 slots: Propulsion x1, Utility x1 12793 | -5/Factory | Identified exit to Upper Caves 13106 | -5/Factory | Loaded intel: 8 recycling unit locations 13200 | -5/Factory | Discovered new exit (range 5) 13201 | -5/Factory | Identified exit to Factory 13229 | -5/Factory | Central database locked down 13308 | -5/Factory | Entered Upper Caves 13309 | -5/Upper Caves | Identified exit to Upper Caves 13311 | -5/Upper Caves | Attracted the attention of an 0b10 checkpoint 13319 | -5/Upper Caves | Build established: Scout 13331 | -5/Upper Caves | Encountered a Warlord checkpoint 13379 | -5/Upper Caves | Entered another Upper Caves area 13380 | -5/Upper Caves | Discovered new exit (range 147) 13446 | -5/Upper Caves | Encountered a Warlord checkpoint 13480 | -5/Upper Caves | Identified exit to Zhirov 13481 | -5/Upper Caves | Entered Zhirov 13481 | -5/Zhirov | Discovered new exit (range 3) 13487 | -5/Zhirov | Met Zhirov 13492 | -5/Zhirov | Learned location of Testing (-2) 13492 | -5/Zhirov | Learned location of Command (-1) 13494 | -5/Zhirov | Zhirov requested help retrieving the SGEMP Prototype 13499 | -5/Zhirov | Found Alien Artifact 13499 | -5/Zhirov | Identified Integrated Reactor 13499 | -5/Zhirov | Installed Integrated Reactor, increased core energy generation (+10) 13507 | -5/Zhirov | Found Alien Artifact 13569 | -5/Zhirov | Identified exit to Proximity Caves 13569 | -5/Zhirov | Entered Proximity Caves 13623 | -4/Proximity Caves | Spotted B-86 Titan 13629 | -4/Proximity Caves | Entered Factory 13629 | -4/Factory | Evolved 2 slots: Utility x2 13658 | -4/Factory | Identified exit to Upper Caves 13692 | -4/Factory | Loaded intel: 8 recycling unit locations 13732 | -4/Factory | Noticed UFD Elites at a Recycling Unit 13750 | -4/Factory | Garrison activated, responded to threat 13997 | -4/Factory | Entered Upper Caves 14136 | -4/Upper Caves | Discovered new exit (range 5) 14142 | -4/Upper Caves | Identified exit to Upper Caves 14142 | -4/Upper Caves | Entered another Upper Caves area 14167 | -4/Upper Caves | Learned Research stockpile data 14251 | -4/Upper Caves | Discovered new exit (range 9) 14270 | -4/Upper Caves | Identified exit to Warlord 14281 | -4/Upper Caves | Entered Warlord 14282 | -4/Warlord | Identified exit to Proximity Caves 14385 | -4/Warlord | Found Prototype Device 14385 | -4/Warlord | Identified Exp. Phase Shifter 14388 | -4/Warlord | Found Prototype Processor 14388 | -4/Warlord | Identified Exp. Core Analyzer 14436 | -4/Warlord | Warlord's base attacked by MAIN.C 14438 | -4/Warlord | Learned Research security intel 14438 | -4/Warlord | Learned 4 Armory zone layouts 14438 | -4/Warlord | Learned location of Armory (-3) 14438 | -4/Warlord | Learned Research emergency access door positions 14460 | -4/Warlord | Found Prototype Energy Cannon 14460 | -4/Warlord | Identified Vortex Cannon 14463 | -4/Warlord | Found Prototype Energy Gun 14463 | -4/Warlord | Identified Vortex Rifle 14465 | -4/Warlord | Found Vortex Cannon 14480 | -4/Warlord | Rebuked by Warlord 14733 | -4/Warlord | Lost 3 allies 14783 | -4/Warlord | Spotted Striker 14786 | -4/Warlord | Warlord forces counterattacked 14825 | -4/Warlord | Spotted Striker 14861 | -4/Warlord | Opened side exit 14868 | -4/Warlord | Entered Proximity Caves 14878 | -3/Proximity Caves | Lost 14 allies 14957 | -3/Proximity Caves | Found Alien Artifact 15224 | -3/Proximity Caves | Discovered new exit (range 7) 15225 | -3/Proximity Caves | Identified exit to Research 15225 | -3/Proximity Caves | Entered Research 15225 | -3/Research | Evolved 2 slots: Propulsion x2 15226 | -3/Research | Identified exit to Quarantine 15254 | -3/Research | Loaded intel: 5 recycling unit locations 15315 | -3/Research | Discovered new exit (range 22) 15320 | -3/Research | Spotted B-86 Titan 15358 | -3/Research | Discovered exit to Quarantine (range 9) 15375 | -3/Research | Entered Quarantine 15426 | -3/Quarantine | Discovered new exit (range 12) 15526 | -3/Quarantine | Build established: Infiltrator-Ninja 15553 | -3/Quarantine | Found Alien Slashing Weapon 15553 | -3/Quarantine | Identified Sigix Broadsword 15625 | -3/Quarantine | Search patrols dispatched 15642 | -3/Quarantine | Found Alien Artifact 15645 | -3/Quarantine | Identified Subatomic Replicator 15645 | -3/Quarantine | Used Subatomic Replicator to create Alien Artifact 15684 | -3/Quarantine | Spotted Fortress 15698 | -3/Quarantine | Discovered new exit (range 6) 15698 | -3/Quarantine | Discovered new exit (range 7) 15699 | -3/Quarantine | Identified exit to Protoforge 15699 | -3/Quarantine | Entered Protoforge 15705 | -3/Protoforge | Spotted Hotshot 15705 | -3/Protoforge | Spotted Hotshot 15723 | -3/Protoforge | Superfortress began startup sequence 15727 | -3/Protoforge | Spotted Hotshot 15796 | -3/Protoforge | Spotted Hotshot 15796 | -3/Protoforge | Spotted Hotshot 15882 | -3/Protoforge | Spotted EXE-6 15882 | -3/Protoforge | Spotted EXE-6 15885 | -3/Protoforge | Spotted Decapitator 15885 | -3/Protoforge | Spotted Decapitator 15890 | -3/Protoforge | UFD initiated attack on Protoforge 15890 | -3/Protoforge | Loaded intel: 3 recycling unit locations 15921 | -3/Protoforge | Found Exp. Core Analyzer 15923 | -3/Protoforge | Found Prototype Ballistic Gun 15927 | -3/Protoforge | Optimus greeted in Protoforge 15928 | -3/Protoforge | Found Prototype Ballistic Gun 15928 | -3/Protoforge | Identified Cep. XC Strikerail (x2) 15929 | -3/Protoforge | Found Prototype Processor 15929 | -3/Protoforge | Identified Exp. Armor Integrity Analyzer 15944 | -3/Protoforge | Forge Plexus network access discovered 15944 | -3/Protoforge | Identified Dimensional Node Initializer 15944 | -3/Protoforge | Initialized slip node 16021 | -3/Protoforge | Met 7R-MNS 16022 | -3/Protoforge | P-80 Master assimilated allied 8V-52W(j) 16063 | -3/Protoforge | Identified Supercharged TR 16063 | -3/Protoforge | Warped through subspace to slip node 16067 | -3/Protoforge | Spotted Executioner 16115 | -3/Protoforge | Lost 4 allies 16133 | -3/Protoforge | Found Exp. System Purifier 16138 | -3/Protoforge | Spotted V555-y 16175 | -3/Protoforge | UFD reported confirmed Drillbomb installation 16217 | -3/Protoforge | Build established: Scavenger-Sprinter 16232 | -3/Protoforge | Spotted Striker 16232 | -3/Protoforge | Spotted Striker 16244 | -3/Protoforge | Spotted Executioner 16247 | -3/Protoforge | Spotted Striker 16265 | -3/Protoforge | Spotted Executioner 16267 | -3/Protoforge | Spotted Striker 16334 | -3/Protoforge | P-80 Master assimilated allied L-61 Swordsman 16355 | -3/Protoforge | Spotted Executioner 16356 | -3/Protoforge | Spotted Striker 16401 | -3/Protoforge | Spotted Executioner 16401 | -3/Protoforge | Spotted Striker 16415 | -3/Protoforge | Spotted Striker 16420 | -3/Protoforge | Lost 4 allies 16425 | -3/Protoforge | Spotted Striker 16466 | -3/Protoforge | Destroyed Striker 16472 | -3/Protoforge | Destroyed Executioner 16489 | -3/Protoforge | Lost 4 allies 16599 | -3/Protoforge | Spotted Decapitator 16599 | -3/Protoforge | Spotted Decapitator 16612 | -3/Protoforge | Destroyed Decapitator 16614 | -3/Protoforge | Destroyed Decapitator 16640 | -3/Protoforge | Spotted Immortal 16643 | -3/Protoforge | Spotted Decapitator 16643 | -3/Protoforge | Spotted Decapitator 16643 | -3/Protoforge | Spotted Decapitator 16643 | -3/Protoforge | Spotted Decapitator 16728 | -3/Protoforge | Local machine network offline 16763 | -3/Protoforge | Destroyed Immortal 16769 | -3/Protoforge | Found Prototype Device 16771 | -3/Protoforge | Identified Exp. Cloaking Device 16775 | -3/Protoforge | Found Prototype Device 16776 | -3/Protoforge | Identified Cep. Antimissile System 16830 | -3/Protoforge | Found Cep. Fieldthrust Drive 16832 | -3/Protoforge | Found Cep. Fieldthrust Drive 16833 | -3/Protoforge | Spotted V244-q 16834 | -3/Protoforge | Spotted V587-e 16834 | -3/Protoforge | Spotted V109-x 16835 | -3/Protoforge | Spotted V793-q 16835 | -3/Protoforge | Found Cep. Fieldthrust Drive 16854 | -3/Protoforge | Destroyed V244-q 16874 | -3/Protoforge | Spotted Executioner 16891 | -3/Protoforge | Spotted Executioner 16987 | -3/Protoforge | Destroyed V587-e 16996 | -3/Protoforge | Destroyed Executioner 16998 | -3/Protoforge | Destroyed V109-x 17012 | -3/Protoforge | Found Cep. Gyrokinetic System 17013 | -3/Protoforge | Found Cep. Gyrokinetic System 17023 | -3/Protoforge | Lost 7 allies 17069 | -3/Protoforge | Destroyed V793-q 17170 | -3/Protoforge | Found Exp. Jetlance 17192 | -3/Protoforge | Spotted V721-p 17207 | -3/Protoforge | Spotted V199-w 17221 | -3/Protoforge | Destroyed V199-w 17256 | -3/Protoforge | Found Prototype Device 17304 | -3/Protoforge | Found Cep. Zero-point Core 17311 | -3/Protoforge | Found Corrupted Prototype Device 17327 | -3/Protoforge | Identified Adv. Particle Accelerator 17393 | -3/Protoforge | Found Cep. Deflector Sword 17394 | -3/Protoforge | Found Faulty Exp. Jetlance 17395 | -3/Protoforge | Found Faulty Cep. Helical Railcannon 17402 | -3/Protoforge | Spotted V007-j 17402 | -3/Protoforge | Found Cep. Heavy Railcannon 17421 | -3/Protoforge | Found Cep. Heavy Railcannon 17422 | -3/Protoforge | Found Faulty Cep. Plasma Driver 17454 | -3/Protoforge | Found Crosscalibrator 17482 | -3/Protoforge | Found Faulty Cep. Plasma Driver 17487 | -3/Protoforge | Found Faulty Cep. Deflector Sword 17488 | -3/Protoforge | Found Cep. Disintegration Ray 17491 | -3/Protoforge | Found Cep. Helical Railcannon 17516 | -3/Protoforge | Spotted Decapitator 17525 | -3/Protoforge | Spotted Immortal 17526 | -3/Protoforge | Spotted Immortal 17586 | -3/Protoforge | Destroyed Immortal 17590 | -3/Protoforge | Found Exp. Jetlance 17597 | -3/Protoforge | Destroyed Immortal 17625 | -3/Protoforge | Found Exp. Jetlance 17688 | -3/Protoforge | Found Cep. Antigrav Storage Unit 17693 | -3/Protoforge | Found Cep. NT7 Matterbank 17696 | -3/Protoforge | UFD reported confirmed Drillbomb installation 17696 | -3/Protoforge | Found Cep. Matter Streamer 17697 | -3/Protoforge | Found Cep. NT7 Matterbank 17733 | -3/Protoforge | Spotted Immortal 17733 | -3/Protoforge | Spotted Immortal 17885 | -3/Protoforge | Destroyed Decapitator 17905 | -3/Protoforge | Found Exp. Active Sensor Suite 17936 | -3/Protoforge | UFD reported confirmed Drillbomb installation 18014 | -3/Protoforge | Additional patrols dispatched to research labs 18018 | -3/Protoforge | Found Transdimensional Reconstructor 18022 | -3/Protoforge | UFD reported confirmed Drillbomb installation 18023 | -3/Protoforge | Found Cep. Nanofilaments [Tensile] 18144 | -3/Protoforge | Build established: Scavenger-Scout 18277 | -3/Protoforge | Spotted AP7-3 18308 | -3/Protoforge | Scanned by Researcher 18327 | -3/Protoforge | Found Cep. Impact Drone Bay 18329 | -3/Protoforge | Found Cep. Cloak Mesh 18332 | -3/Protoforge | Found Faulty Cep. Impact Drone Bay 18333 | -3/Protoforge | Found Faulty Cep. Core Analysis Suite 18334 | -3/Protoforge | Found Cep. Core Analysis Suite 18355 | -3/Protoforge | Spotted AP7-3 18500 | -3/Protoforge | Destroyed Decapitator 18504 | -3/Protoforge | Destroyed Decapitator 18508 | -3/Protoforge | Destroyed Decapitator 18518 | -3/Protoforge | Destroyed Decapitator 18703 | -3/Protoforge | Found Exp. Remote Shield 18704 | -3/Protoforge | Found Faulty Exp. Remote Shield 18706 | -3/Protoforge | Found Cep. Hardlight Director 18722 | -3/Protoforge | Found Cep. Beam Splitter 18727 | -3/Protoforge | Spotted V560-t 18815 | -3/Protoforge | Found Exp. Core Analyzer 18816 | -3/Protoforge | Spotted Striker 18824 | -3/Protoforge | Spotted Striker 18827 | -3/Protoforge | Destroyed Striker 18843 | -3/Protoforge | Spotted Executioner 18851 | -3/Protoforge | Spotted Striker 18861 | -3/Protoforge | Destroyed Striker 18890 | -3/Protoforge | Lost 5 allies 18930 | -3/Protoforge | Found Faulty Cep. Beam Splitter 18970 | -3/Protoforge | Found Cep. XC Strikerail 18980 | -3/Protoforge | Spotted Striker 18980 | -3/Protoforge | Spotted Executioner 18991 | -3/Protoforge | Build established: Scavenger-Ninja 19031 | -3/Protoforge | Found Cep. Weapon Articulator 19032 | -3/Protoforge | Found Exp. Kinecellerator 19034 | -3/Protoforge | Found Cep. Weapon Articulator 19036 | -3/Protoforge | Found Femtoactuators 19042 | -3/Protoforge | Found Femtoactuators 19044 | -3/Protoforge | Found Cep. Weapon Articulator 19076 | -3/Protoforge | Found Cep. Phase Shift Module 19081 | -3/Protoforge | Found Faulty Cep. Phase Shift Module 19100 | -3/Protoforge | Spotted Executioner 19141 | -3/Protoforge | Installed Cep. Nanofilaments [Tensile], 3 resistances modified: KI +20%, TH -10%, I +20% 19143 | -3/Protoforge | Found Faulty Cep. Combat Aerolev Unit 19145 | -3/Protoforge | Found Cep. Combat Aerolev Unit 19398 | -3/Protoforge | Found Cep. Gyrokinetic System 19456 | -3/Protoforge | Found Faulty Cep. Zero-point Core 19460 | -3/Protoforge | Found Cep. Zero-point Core 19770 | -3/Protoforge | Destroyed AP7-3 19777 | -3/Protoforge | Destroyed AP7-3 19805 | -3/Protoforge | Found Cep. Antigrav Storage Unit 19928 | -3/Protoforge | Found Faulty Exp. Remote Shield 19977 | -3/Protoforge | Build established: Scavenger-Sprinter 20256 | -3/Protoforge | Spotted Executioner 20262 | -3/Protoforge | Spotted Striker 20300 | -3/Protoforge | Spotted Striker 20302 | -3/Protoforge | Spotted Striker 20311 | -3/Protoforge | Spotted Striker 20312 | -3/Protoforge | Spotted Striker 20327 | -3/Protoforge | P-80 Master assimilated allied OS-S9M(E) 20331 | -3/Protoforge | Destroyed Striker 20356 | -3/Protoforge | Spotted Executioner 20356 | -3/Protoforge | Spotted Striker 20360 | -3/Protoforge | Destroyed Executioner 20362 | -3/Protoforge | Destroyed Striker 20406 | -3/Protoforge | Lost 9 allies 20411 | -3/Protoforge | Spotted Executioner 20420 | -3/Protoforge | Destroyed Executioner 20438 | -3/Protoforge | Spotted Executioner 20440 | -3/Protoforge | Core integrity fell below 50% 20446 | -3/Protoforge | Destroyed Executioner 20493 | -3/Protoforge | Destroyed 20 combat bots 20503 | -3/Protoforge | Spotted Executioner 20503 | -3/Protoforge | Spotted Executioner 20503 | -3/Protoforge | Spotted Striker 20503 | -3/Protoforge | Spotted Striker 20512 | -3/Protoforge | Discovered new exit (range 23) 20528 | -3/Protoforge | Entered Research 20528 | -2/Research | Evolved 2 slots: Power x1, Weapon x1 20529 | -2/Research | Identified exit to Testing 20591 | -2/Research | Entered Testing 20644 | -2/Testing | Found Prototype Protection 20701 | -2/Testing | Spotted Striker 20713 | -2/Testing | Spotted Striker 20716 | -2/Testing | Destroyed Striker 20720 | -2/Testing | Destroyed Striker 20728 | -2/Testing | Spotted Alpha 7 20732 | -2/Testing | Unchained authorized (CL-0N3) 20746 | -2/Testing | Allies destroyed Alpha 7 20753 | -2/Testing | Stole the SGEMP Prototype 20834 | -2/Testing | Destroyed 7 combat bots 20841 | -2/Testing | First assault squad dispatched 20857 | -2/Testing | Found Prototype Energy Cannon 20857 | -2/Testing | Identified Cld. Nova Cannon 20918 | -2/Testing | Discovered new exit (range 8) 20926 | -2/Testing | Spotted PG-NEX5TFUMQQ 20942 | -2/Testing | Entered Access 20942 | -1/Access | Evolved 2 slots: Utility x2 20943 | -1/Access | Delivered the SGEMP Prototype to Zhirov 20943 | -1/Access | Zhirov transferred Access data 20944 | -1/Access | Loaded intel: 111 machine locations 20944 | -1/Access | Loaded intel: 69 trap records 20944 | -1/Access | Identified exit to Surface 20944 | -1/Access | Discovered exit to Surface (range 257) 20944 | -1/Access | Identified exit to Command 20944 | -1/Access | Discovered exit to Command (range 128) 20986 | -1/Access | Unchained authorized (CL-0N3) 21020 | -1/Access | Spotted B-99 Colossus 21034 | -1/Access | Destroyed 10 combat bots 21096 | -1/Access | Zhirov warped through subspace 21133 | -1/Access | Destroyed 7 combat bots 21192 | -1/Access | First assault squad dispatched 21917 | -1/Access | Entered Command 21921 | -1/Command | Phase Generator disabled 22003 | -1/Command | Spotted M Guard 22008 | -1/Command | Destroyed M Guard 22012 | -1/Command | Spotted M Guard 22016 | -1/Command | Spotted Combat Programmer 22016 | -1/Command | Spotted Combat Programmer 22031 | -1/Command | Destroyed Combat Programmer 22034 | -1/Command | Destroyed Combat Programmer 22047 | -1/Command | Destroyed M Guard 22047 | -1/Command | All MAIN.C guards destroyed 22064 | -1/Command | Found Prototype Launcher 22109 | -1/Command | Met MAIN.C 22115 | -1/Command | 0b10 Conduit disabled 22123 | -1/Command | Destroyed MAIN.C Shell 22125 | -1/Command | MAIN.C activated Command garrisons 22131 | -1/Command | Zhirov arrived to use SGEMP to disable MAIN.C 22148 | -1/Command | Identified Hvy. Regenerative Plating 22148 | -1/Command | Identified Hellfire Missile Launcher 22148 | -1/Command | Discovered exit to Surface (range 32) 22148 | -1/Command | Discovered exit to Surface (range 80) 22148 | -1/Command | Extracted map data and part IDs from MAIN.C's data core 22232 | -1/Command | Found Exp. System Purifier 22248 | -1/Command | Found Zero-point Reactor 22275 | -1/Command | Warped through subspace to slip node 22275 | -1/Command | Discovered new exit (range 5) 22285 | -1/Command | Entered Access_0 22285 | -1/Access_0 | Accompanied by 5 allies 22286 | -1/Access_0 | Met Architect 22292 | -1/Access_0 | Architect warped through subspace 22304 | -1/Access_0 | Destroyed A8 22337 | -1/Access_0 | Architect warped through subspace 22357 | -1/Access_0 | Spotted Enhanced Programmer 22360 | -1/Access_0 | Subspace Access Node disabled 22365 | -1/Access_0 | Architect warped through subspace 22382 | -1/Access_0 | Architect warped through subspace 22385 | -1/Access_0 | Spotted Enhanced Programmer 22386 | -1/Access_0 | Spotted Enhanced Programmer 22403 | -1/Access_0 | Destroyed Enhanced Programmer 22409 | -1/Access_0 | Destroyed Enhanced Programmer 22419 | -1/Access_0 | Architect warped through subspace 22431 | -1/Access_0 | A6 warped into view 22432 | -1/Access_0 | Subspace Access Node disabled 22455 | -1/Access_0 | Allies destroyed A6 22464 | -1/Access_0 | Architect warped through subspace 22466 | -1/Access_0 | System corruption reached 10% 22481 | -1/Access_0 | Architect warped through subspace 22492 | -1/Access_0 | Spotted Enhanced Programmer 22501 | -1/Access_0 | Spotted Enhanced Programmer 22501 | -1/Access_0 | Subspace Access Node disabled 22535 | -1/Access_0 | Destroyed Enhanced Programmer 22549 | -1/Access_0 | Lost 7 allies 22550 | -1/Access_0 | Destroyed Enhanced Programmer 22553 | -1/Access_0 | Architect warped through subspace 22575 | -1/Access_0 | Architect warped through subspace 22584 | -1/Access_0 | Destroyed 7 combat bots 22587 | -1/Access_0 | Subspace Access Node disabled 22591 | -1/Access_0 | Lost 6 parts (1n3u2w) 22626 | -1/Access_0 | Destroyed Architect 22627 | -1/Access_0 | Architect triggered a singularity event 22627 | -1/Access_0 | Extracted unknown sensor trigger ID from Architect's data core 22628 | -1/Access_0 | Found Hpw. Transdimensional Reconstructor 22628 | -1/Access_0 | Warped through subspace to slip node 22628 | -1/Access_0 | Discovered exit to Surface (range 8) 22634 | *** | Escaped singularity! Last Messages --------------- 22626_ Architect destroyed. 22627_ A0_COM: Initiating irreversible singularity event. Goodbye. 22627_ Acquired data core, extracted unknown sensor trigger ID. 22627_ Acquired 25 matter. 22628_ A0_COM: 10. 22628_ Acquired Hpw. Transdimensional Reconstructor. 22628_ Warped through subspace, drawn to slip node. 22628_ EXIT=FOUND: SURFACE 22629_ A0_COM: 9. 22629_ System corrupted: Matter fused (-7). 22630_ A0_COM: 8. 22631_ A0_COM: 7. 22632_ A0_COM: 6. 22633_ A0_COM: 5. 22634_ A0_COM: 4. [Achievement: True Cogmind] Map ----- +----------------------------------------------------+ | | | | | | | | | | | | | | | | | | | | | | | | | | | | | | | | | ?????????????????????????????????????????????????? | | ?????????????????????????????????????????????????? | | ?????????????????????????????????????????????????? | | ?????????????????????#########???????????????????? | | ????????????????????###########??????????????????? | | ????????????????????###########??????????????????? | | ????????????????????###########??????????????????? | | ???????????????????###### #####??????????????????? | | ???????????????????##### ####??????????????????? | | ???????????????????##### @ ####??????????????????? | | ???????????????????##### ####??????????????????? | | ???????????????????#### ####??????????????????? | | ???????????????????#### #####??????????????????? | | ???????????????????##### ####??????????????????? | | ???????????????????#### ####??????????????????? | | ???????????????????#### #####??????????????????? | | ???????????????????#### < ####??????????????????? | | ???????????????????#### #####??????????????????? | | ???????????????????##### #####??????????????????? | | ???????????????????############??????????????????? | | ???????????????????############??????????????????? | | ???????????????????###########???????????????????? | | ????????????????????##########???????????????????? | | ?????????????????????????????????????????????????? | | ?????????????????????????????????????????????????? | | ?????????????????????????????????????????????????? | | ?????????????????????????????????????????????????? | | ?????????????????????????????????????????????????? | | ?????????????????????????????????????????????????? | | ?????????????????????????????????????????????????? | | ?????????????????????????????????????????????????? | | ?????????????????????????????????????????????????? | | ?????????????????????????????????????????????????? | | ?????????????????????????????????????????????????? | +----------------------------------------------------+ Best States ------------- Heat Dissipation 88 Energy Generation 71 Energy Capacity 940 Matter Stores 300 Matter Capacity 300 Sight Range 23 Robot Scan Range 20 Terrain Scan Density 10 Jamming Range 14 Cloak Strength 6 Armor Coverage 600 Resistance: KI 20 Resistance: TH 65 Resistance: I 20 Point Defense Rating 480 Melee Speed Boost 50 Phase Shifting 25 Evasion (%) 97 Targeting Accuracy 30 Melee Accuracy 6 Core Analysis 11 Armor Integrity Analysis 50 Recoil Reduction 3 Salvage Targeting 5 Offensive Hacking 28 Item Schematics ----------------- Assault Drone Bay | -5/Zhirov | Free Exp. Heat Sink | -5/Zhirov | Free Exp. Optical Array | -5/Zhirov | Free Imp. Arc Thrower | -5/Zhirov | Free Cld. Field Propulsion Drive | -3/Protoforge | Archive Exp. Energy Well | -3/Protoforge | Archive Exp. Focal Shield | -3/Protoforge | Archive Prc. Energy Filter | -3/Protoforge | Archive Adv. Plasma Rifle | -3/Protoforge | Archive Enh. Fission Core | -3/Protoforge | Archive Cld. Impulse Thruster | -3/Protoforge | Archive Hvy. Neutron Cannon | -3/Protoforge | Archive Hvy. Wave Gun | -3/Protoforge | Archive Adv. Micro-nuke Launcher | -3/Protoforge | Archive Vibroblade | -3/Protoforge | Archive Exp. Target Analyzer | -3/Protoforge | Archive Lgt. Antimatter Cannon | -3/Protoforge | Archive Imp. Diametric Drive | -3/Protoforge | Archive Prc. Phase Gun | -3/Protoforge | Archive Thunder Hammer | -3/Protoforge | Archive Plasma Sword | -2/Testing | Archive Point Singularity Launcher | -2/Testing | Archive Robot Schematics ------------------ A-02 Transporter | -3/Protoforge | Archive L-61 Swordsman | -3/Protoforge | Archive A-15 Conveyor | -3/Protoforge | Archive E-15 Imp | -3/Protoforge | Archive T-07 Excavator | -3/Protoforge | Archive S-43 Plague | -3/Protoforge | Archive W-44 Eye | -3/Protoforge | Archive G-73 Enforcer | -2/Testing | Archive G-67 Veteran | -2/Testing | Archive Fabricated ------------ Nothing Repaired ---------- Lgt. Nuclear Core | 64% | -9/Storage Studied --------- Lgt. Treads | -9/Materials | Hacked Autogun | -9/Materials | Hacked Lgt. Nuclear Core | -6/Factory | Hacked Mic. Nuclear Core | -5/Factory | Hacked Nuclear Pulse Array | -4/Factory | Hacked Lgt. Antimatter Reactor | -4/Factory | Hacked Mic. Antimatter Reactor | -3/Quarantine | Hacked Impulse Thruster | -3/Quarantine | Hacked Alien Tech Used ----------------- Integrated Reactor Sigix Broadsword Subatomic Replicator Dimensional Node Initializer Supercharged TR Concept Nanofilaments [Tensile] Transdimensional Reconstructor High-powered Transdimensional Reconstructor Achievements -------------- Definitely A Prototype Some Acronyms Are Better Than Others True Cogmind Challenges ------------ None Game ------ Seed ExperimentalScanCoupler Manual? 0 Play Time 06:44:36 Cumulative 362.0 hours Start 2025.10.21 @ 15:32:42 End 2025.10.22 @ 01:43:13 Sessions 1 Manual Loads 0 Difficulty Rogue Special Mode None Game No. 142 Rogue 142 Adventurer 0 Explorer 0 Win Type 6 Total 25 Types 1/2/11/0/0/1/8/0/1/1 Lore% 81 Gallery% 71 Achievement% 60 Wizard Run 0 Options --------- Layout 1 ASCII 0 Keyboard 0 Movement Arrows Keybinds 0 Fullscreen 2 Font 24/Terminus Map View 50x35 Zoom Use 0% Tactical HUD 1 Map Filters NONE Filters NONE Steam 1 RUN: a2b346e6-e8bb-4670-8864-65b281088660